{"text_format":"1","workbook":"xlsx","n_sheets":13,"sheets":["1","Общие сведения","Региональные программы","Список субъектов РФ","Подписанты","Список РП","Отчет (4)","Мероприятия ФЦП","Подписанты2","Архив отчетов","Отчет_последний","Мер_форма","Замена"],"not_rendered":{"charts":0,"images":1,"macros":1,"external_links":0,"defined_names":12,"comments":0,"pivot_tables":0},"unopened":[],"bounds":{"document_bytes":16777216,"sheet_cells":100000,"rows_first":2000,"rows_last":500,"rows_between":2000,"halvings":0,"cell_chars":16384,"cell_head_chars":4096},"cells_cut":0,"cells_raw":0,"read":"whole","date_system":"1900"}

{"sheet":"1","index":0,"n_rows":14,"n_cols":3,"rows_kept":14,"cut":false,"hidden":false,"merged":[[1,2,1,3],[2,2,2,3],[4,1,4,3],[13,1,13,3],[5,1,5,3],[8,2,8,3],[10,2,10,3],[7,2,7,3],[9,2,9,3],[3,1,3,3],[11,2,11,3]]}
[]
[null,null,"Федеральная целевая программа"]
[null,null,"\"Повышение безопасности дорожного движения в 2013-2020 годах\""]
[null,"Программное приложение для заполнения формы отчета Республики Тыва для ФКУ \"Дирекция Программы ПБДД\""]
[null,"Инструкция по заполнению отчета"]
[null,"ЗАПОЛНЕНИЕ ФОРМЫ ОТЧЕТА"]
[]
[null,"•","Общие сведения"]
[null,"•","Список региональных программ (подпрограмм)"]
[null,"•","Текущий отчет"]
[null,"•","Архив отчетов"]
[null,"•","Список мероприятий ФЦП ПБДД (2013-2020)"]
[]
[null,"ФКУ \"Дирекция Программы ПБДД\", 2014"]

{"sheet":"Общие сведения","index":1,"n_rows":69,"n_cols":39,"rows_kept":69,"cut":false,"hidden":false,"merged":[[2,4,2,37],[22,9,22,19],[22,26,22,36],[11,9,11,21],[13,9,14,36],[17,9,17,21],[19,9,20,36]]}
[]
[]
[null,null,null,null,"ОБЩИЕ СВЕДЕНИЯ ОБ ОТЧЕТЕ",null,null,null,null,null,null,null,null,null,null,null,null,null,null,null,null,null,null,null,null,null,null,null,null,null,null,null,null,null,null,null,null,null,"[?]"]
[]
[null,null,null,null,null,"Отчетный год",null,null,null,null,null,null,null,null,null,null,null,null,null,null,"Период отчета"]
[]
[null,null,null,null,null,"Наименование субъекта РФ:",null,null,null,null,null,null,null,"Республика Тыва"]
[]
[]
[null,null,null,null,null,null,"Должностное лицо администрации субъекта РФ, ответственное за реализацию ФЦП:"]
[]
[null,null,null,null,null,null,"Ф.И.О.:",null,null,"О. О. Бады"]
[]
[null,null,null,null,null,null,"Должность:",null,null,"Министр дорожного-транспортного комплекса Республики Тыва"]
[]
[null,null,null,null,null,null,"Должностное лицо, ответственное за составление отчета:"]
[]
[null,null,null,null,null,null,"Ф.И.О.:",null,null,"К. К. Суктер-оол"]
[]
[null,null,null,null,null,null,"Должность:",null,null,"Ведущий специалист"]
[]
[]
[null,null,null,null,null,null,"E-mail:",null,null,"mindortrans_rt07@mail.ru",null,null,null,null,null,null,null,null,null,null,null,"Контактный телефон:",null,null,null,null,"8 (39422) 2-63-05"]
[]
[]
[]
[]
[]
[]
[]
[]
[]
[]
[]
[]
[]
[]
[]
[]
[]
[]
[]
[]
[]
[]
[]
[]
[]
[]
[]
[]
[]
[]
[]
[]
[]
[]
[]
[]
[]
[]
[]
[]
[]
[]
[]
[null,null,null,null,18]
[null,null,null,null,2]
[null,null,null,null,4]

{"sheet":"Региональные программы","index":2,"n_rows":3,"n_cols":3,"rows_kept":3,"cut":false,"hidden":false,"merged":[[0,0,0,1]]}
["Список региональных программ",null,"Приложение к отчету"]
["Код пр.","Наименование региональной программы (подпрограммы), муниципальной программы (подпрограммы), направленной на повышение уровня безопасности дорожного движения","Наименование нормативно-правового акта, утвердившего программу, с учетом последней редакции"]
[1,"Государственная программа Республики Тыва \"Развитие транспортной системы Республики Тыва на 2014-2016 годы\" подпрограмма «Обеспечение безопасности дорожного движения на 2014-2016 годы». ","Постановление Правительства Республики Тыва от 28 апреля 2014 г. №171 \"Об утверждении государственной программы Республики Тыва \"Развитие транспортной системы Республики Тыва на 2014-2016 годы\"\""]

{"sheet":"Список субъектов РФ","index":3,"n_rows":119,"n_cols":2,"rows_kept":119,"cut":false,"hidden":true,"merged":[]}
["Пор. №","Полное наименование субъекта РФ"]
["01","Республика Адыгея (Адыгея)"]
["02","Республика Алтай"]
["03","Республика Башкортостан"]
["04","Республика Бурятия"]
["05","Республика Дагестан"]
["06","Республика Ингушетия"]
["07","Кабардино-Балкарская Республика"]
["08","Республика Калмыкия"]
["09","Карачаево-Черкесская Республика"]
["10","Республика Карелия"]
["11","Республика Коми"]
["12","Республика Крым"]
["13","Республика Марий Эл"]
["14","Республика Мордовия"]
["15","Республика Саха (Якутия)"]
["16","Республика Северная Осетия - Алания"]
["17","Республика Татарстан (Татарстан)"]
["18","Республика Тыва"]
["19","Удмуртская Республика"]
["20","Республика Хакасия"]
["21","Чеченская Республика"]
["22","Чувашская Республика - Чувашия"]
["23","Алтайский край"]
["24","Забайкальский край"]
["25","Камчатский край"]
["26","Краснодарский край"]
["27","Красноярский край"]
["28","Пермский край"]
["29","Приморский край"]
["30","Ставропольский край"]
["31","Хабаровский край"]
["32","Амурская область"]
["33","Архангельская  область"]
["34","Астраханская область"]
["35","Белгородская область"]
["36","Брянская область"]
["37","Владимирская область"]
["38","Волгоградская область"]
["39","Вологодская область"]
["40","Воронежская область"]
["41","Ивановская область"]
["42","Иркутская область"]
["43","Калининградская область"]
["44","Калужская область"]
["45","Кемеровская область"]
["46","Кировская область"]
["47","Костромская область"]
["48","Курганская область"]
["49","Курская область"]
["50","Ленинградская область"]
["51","Липецкая область"]
["52","Магаданская область"]
["53","Московская область"]
["54","Мурманская область"]
["55","Нижегородская область"]
["56","Новгородская область"]
["57","Новосибирская область"]
["58","Омская область"]
["59","Оренбургская область"]
["60","Орловская область"]
["61","Пензенская область"]
["62","Псковская область"]
["63","Ростовская область"]
["64","Рязанская область"]
["65","Самарская область"]
["66","Саратовская область"]
["67","Сахалинская область"]
["68","Свердловская область"]
["69","Смоленская область"]
["70","Тамбовская область"]
["71","Тверская область"]
["72","Томская область"]
["73","Тульская область"]
["74","Тюменская область"]
["75","Ульяновская область"]
["76","Челябинская область"]
["77","Ярославская область"]
["78","город Москва"]
["79","город Санкт-Петербург"]
["80","город Севастополь"]
["81","Еврейская автономная область"]
["82","Ненецкий автономный округ"]
["83","Ханты-Мансийский автономный округ - Югра"]
["84","Чукотский автономный округ"]
["85","Ямало-Ненецкий автономный округ"]
[]
[]
[1,"Региональный бюджет"]
[2,"Муниципальный бюджет"]
[3,"Внебюджетные источники финансирования"]
[]
[]
[1,"1 квартал"]
[2,"2 квартал"]
[3,"3 квартал"]
[4,"4 квартал"]
[]
[2014]
[2015]
[2016]
[2017]
[2018]
[2019]
[2020]
[]
[]
[null,"РБ"]
[null,"МБ"]
[null,"ВБИ"]
[]
[]
[2]
[3]
[4]
[5]
[6]
[7]
[0]

{"sheet":"Подписанты","index":4,"n_rows":22,"n_cols":18,"rows_kept":22,"cut":false,"hidden":true,"merged":[[19,15,19,18],[21,15,21,18],[15,0,15,9],[16,0,16,9],[17,0,17,9],[15,11,15,13],[17,11,17,13],[0,0,0,14],[2,0,2,14],[14,0,14,9],[15,15,15,18],[17,15,17,18]]}
["Должностное лицо администрации субъекта РФ, ответственное за реализацию федеральной целевой программы"]
[null,null,null,null,null,null,null,null,null,null,null,null,null,null,null,null,null,"(Ф.И.О., должность)"]
["Должностное лицо, ответственное за составление формы"]
[null,null,null,null,null,null,null,null,null,null,null,null,null,null,null,null,null,"(Ф.И.О., должность)"]
[]
[null,null,null,null,null,null,null,null,null,null,null,null,null,null,null,null,null,"(адрес электронной почты)"]
[]
[null,null,null,null,null,null,null,null,null,null,null,null,null,null,null,null,null,"(номер контактного телефона)"]
[]
[]
[]
[]
[]
[]
["Министр дорожного-транспортного комплекса Республики Тыва",null,null,null,null,null,null,null,null,null,null,null,null,null,null,"О. О. Бады"]
["(Должность лица администрации субъекта РФ, ответственного за реализацию федеральной целевой программы)",null,null,null,null,null,null,null,null,null,null,"Подпись",null,null,null,"(Ф.И.О.)"]
["Ведущий специалист",null,null,null,null,null,null,null,null,null,null,null,null,null,null,"К. К. Суктер-оол"]
["(Должность лица, ответственного за составление формы)",null,null,null,null,null,null,null,null,null,null,"Подпись",null,null,null,"(Ф.И.О.)"]
[null,null,null,null,null,null,null,null,null,null,null,null,null,null,null,"mindortrans_rt07@mail.ru"]
[null,null,null,null,null,null,null,null,null,null,null,null,null,null,null,"(адрес электронной почты)"]
[null,null,null,null,null,null,null,null,null,null,null,null,null,null,null,"8 (39422) 2-63-05"]
[null,null,null,null,null,null,null,null,null,null,null,null,null,null,null,"(контактный телефон)"]

{"sheet":"Список РП","index":5,"n_rows":2,"n_cols":3,"rows_kept":2,"cut":false,"hidden":true,"merged":[]}
[1,"Государственная программа Республики Тыва \"Развитие транспортной системы Республики Тыва на 2014-2016 годы\" подпрограмма «Обеспечение безопасности дорожного движения на 2014-2016 годы». ","Постановление Правительства Республики Тыва от 28 апреля 2014 г. №171 \"Об утверждении государственной программы Республики Тыва \"Развитие транспортной системы Республики Тыва на 2014-2016 годы\"\""]
[null,"Государственная программа Республики Тыва \"Развитие транспортной системы Республики Тыва на 2014-2016 годы\"","Постановление Правительства Республики Тыва от 28 апреля 2014 г. №171 \"Об утверждении государственной программы Республики Тыва \"Развитие транспортной системы Республики Тыва на 2014-2016 годы\"\""]

{"sheet":"Отчет (4)","index":6,"n_rows":39,"n_cols":21,"rows_kept":39,"cut":false,"hidden":false,"merged":[[36,0,36,4],[37,0,37,4],[34,10,34,11],[36,6,36,8],[36,10,36,11],[35,10,35,11],[37,10,37,11],[35,6,35,8],[37,6,37,8],[35,0,35,4],[34,0,34,4],[34,6,34,8],[5,5,8,5],[0,0,0,20],[1,0,1,20],[2,6,2,17],[3,0,3,20],[4,13,4,14],[4,15,4,17],[5,0,8,0],[5,1,8,1],[5,2,8,2],[5,3,8,3],[5,4,8,4],[5,16,7,17],[5,18,7,20],[10,0,14,0],[10,1,14,1],[10,3,14,3],[10,4,14,4],[10,5,14,5],[10,19,14,19],[10,20,14,20],[5,6,8,6],[5,7,8,7],[5,8,8,8],[5,9,7,10],[5,11,7,12],[5,13,7,15],[37,15,37,18],[39,15,39,18],[35,15,35,18],[38,10,38,12],[10,18,14,18]]}
["Отчет субъекта РФ"]
["о ходе выполнения региональных программ (подпрограмм) и внепрограммных мероприятий по повышению безопасности дорожного движения"]
[null,null,null,null,null,null,"Республика Тыва"]
["(наименование субъекта РФ)"]
["Дата отчета: 13.01.2015 9:59:40","2016-01-12",null,"MS Excel 2007",null,null,null,null,null,null,null,null,null,"Период отчета: ",null,"За 12 месяцев 2015 года (IV квартал)",null,null,null,null,"Тыс. рублей"]
["№ п.п.","Код пр.","Наименование мероприятия","Направление ФЦП","№ мероприятия по ФЦП","Источник финансирования (РБ, МБ, ВБИ)","Запланировано в программе/подпрограмме на реализацию мероприятия на отчетный год","Бюджетные назначения на отчетный год","Лимиты бюджетных обязательств на отчетный год","Стоимость работ по контрактам на отчетный год",null,"Количество контрактов,  на отчетный год",null,"Фактически профинансировано (кассовые расходы) на реализацию мероприятия ",null,null,"Фактически освоено средств (по актам сдачи-приемки) на реализацию мероприятия",null,"Фактическое выполнение мероприятия программы (подпрограммы)\n"]
[]
[]
[null,null,null,null,null,null,null,null,null,"Всего, включая контракты прошлых лет","Всего, по контрактам, заключенным за отчетный год","Всего, включая контракты прошлых лет","Количество контрактов, заключенных в отчетном году","Всего с начала года","Всего за квартал","По кредиторской задолженности","Всего с начала года","Всего за квартал","Количественный показатель","Ед. измере-ния","Краткое описание результатов выполнения (или причин не выполнения) мероприятия программы (подпрограммы)"]
["1","2","3","4","5","6","7","8","9","10","11","12","13","14","15","16","17","18","19","20","21"]
[null,null,"Итого по всем мероприятиям",null,null,null,{"$f":"G13+G15","v":26173.7},{"$f":"H13+H15","v":23878.7},23878.7,1,22493.7,6,33,17901.400000000001,9196.5999999999985,1507.8,18757,10052.200000000001,null,null," - "]
[null,null,"в том числе:"]
[null,null,"за счет средств регионального бюджета",null,null,null,{"$f":"G17+G18+G19+G20+G22+G24+G25+G30+G31+G32","v":11081},{"$f":"H17+H18+H19+H20+H22+H24+H25+H30+H31+H32","v":11081},11081,1,9696,5,12,8861.4,4298.8999999999996,1507.8,9717,5154.5]
[null,null,"за счет средств местных бюджетов"]
[null,null,"за счет внебюджетных источников",null,null,null,{"$f":"G16+G21+G26+G28+G29","v":15092.7},{"$f":"H16+H21+H26+H28+H29","v":12797.7},12797.7,0,12797.7,1,21,9040,4897.7,0,9040,4897.7]
[1,1,"Оснащение техническими комплексами подразделений, осуществляющих  контрольные и надзорные функции в области БДД стационарными и мобильными комплексами видеофиксации нарушений Правил дорожного движения, включая доставку,  проведение коммуникаций (сетевая магистраль, электроснабжение), общестроительные работы (монтаж и установку комплексов видеофиксации) и техническое содержание объектов","2","7","ВБИ",1000,400,400,0,400,0,4,400,100,0,400,100,29,"штук","В целях предупреждения опасного поведения участников дорожного движения и повышения эффективности контрольно-надзорной деятельности в течении 2015 года выполнялись мероприятия по содержанию комплекса автоматизированной системы видеонаблюдения на улицах города"]
[2,1,"Финансирование работ  по обработке данных камер видеофиксации и подготовке постановлений по делам об административных правонарушениях","2","7","РБ",3087,3087,3087,0,3087,0,1,3087,757.9,0,3087,757.9,22206,"рублей","Работникам отдела по обработке данных камер видеофиксации по подготовке АПН произведена оплата зарплаты. Перечислены налоги и взносы, а также на канцелярские товары."]
[3,1,"Финансирование почтовых расходов по рассылке постановлений по делам  об административных правонарушениях","2","7","РБ",5463,5463,5463,0,5463,4,3,4617.3999999999996,2384,1419.8,5463,3229.6,34765,"штук","Отделом ЦАФАП с применением специальных технических средств фотовидеофиксации работающими в автоматическом режиме внесено и направлено АПН."]
[4,1,"Разработка проекта  «Автоматизированная система видеофиксации нарушений правил дорожного движения на территории Респуб-лики Тыва»","2","1","РБ",853,853,853,0,0,0,0,0,0,0,0,0,0,null,"Разработка проекта будет выполняться после утверждения (принятия) АПК \"Безопасный город\". "]
[5,1,"Введение паспортов дорожной безопасности образовательных учреждений в дошкольных и образовательных учреждениях республики в 2014 – 2015 годах для отображения информа-ции об образовательном учреждении с точки зрения обеспечения безопасности детей на этапах их перемещения «дом - образователь-ное учреждение (ОУ) - дом», а также для ис-пользования преподавательским составом и сотрудниками Госавтоинспекции в работе по обучению школьников навыкам транспортной культуры и подготовки мероприятий по предупреждению дорожно-транспортного травматизма","3","1","РБ",10,10,10,0,10,0,1,0,0,10,10,10,375,"штук","Паспорта дорожной безопасности на 2015- 2018 гг. внедрены в  375 (из 428) образовательных учреждениях  республики."]
[6,1,"Введение паспортов дорожной безопасности образовательных учреждений в дошкольных и образовательных учреждениях республики в 2014 – 2015 годах для отображения информа-ции об образовательном учреждении с точки зрения обеспечения безопасности детей на этапах их перемещения «дом - образователь-ное учреждение (ОУ) - дом», а также для ис-пользования преподавательским составом и сотрудниками Госавтоинспекции в работе по обучению школьников навыкам транспортной культуры и подготовки мероприятий по предупреждению дорожно-транспортного травматизма","3","1","ВБИ",10,10,10,0,10,0,1,10,10,0,10,10,375,"штук","Паспорта дорожной безопасности на 2015- 2018 гг. внедрены в  375 (из 428) образовательных учреждениях республики."]
[7,1,"Создание видео-телевизионной и информаци-онно-пропагандисткой продукции, организа-ция наружной и социальной рекламы (банне-ры, перетяжки), а также размещение материа-лов в средствах массовой информации, на-глядной агитации по безопасности дорожного движения в общественных местах (общеобра-зовательных учреждениях, общественном транспорте, кинотеатрах, рекламных экранах, остановках общественного транспорта и т.д.)","2","10,11","РБ",500,500,500,0,190,0,3,190,190,0,190,190,3460,"выходов, штук"," 1) На телеканале \"Новый век\" в передаче \"Автоликбез\" осуществлено 18 выходов передачи (с повторами)  с освещением вопросов о БДД.                                                                         2) Изгтовлены и распространены 3460 штук буклетов для проведения информационно-пропагандиских мероприятий и акций."]
[8,1,"Создание видео-телевизионной и информаци-онно-пропагандисткой продукции, организа-ция наружной и социальной рекламы (банне-ры, перетяжки), а также размещение материа-лов в средствах массовой информации, на-глядной агитации по безопасности дорожного движения в общественных местах (общеобра-зовательных учреждениях, общественном транспорте, кинотеатрах, рекламных экранах, остановках общественного транспорта и т.д.)","2","10,11","ВБИ",40,40,40,0,0,0,0,0,0,0,0,0,0,"выходов","Мероприятия не выполнялись, в связи с дефицитом финансовых средств."]
[9,1,"Организация и проведение республиканских отборочных мероприятий отрядов юных ин-спекторов движения (ЮИД) и участие во все-российских детских массовых мероприятиях: слетах юных инспекторов, всероссийском конкурсе-фестивале \"Безопасное колесо\" ор-ганизуемых Департаментом обеспечения безопасности дорожного движения МВД РФ с оплатой проезда, питания, проживания участ-ников и сопровождающих лиц","3","12","РБ",100,100,100,1,1,1,1,100,100,0,100,100,5,"штук","Произведена оплата  проезда 4 участникам всероссийского конкурса юных инспекторов движения \"Безопасное колесо\" и одного сопровождающего  лица во ВДЦ «Орлёнок»  с 11 по 18 июня. "]
[10,1,"Проведение серий широкомасштабных информационно - пропагандистских социаль-ных кампаний и акций, направленных на фор-мирование устойчивых навыков законопос-лушного поведения на дорогах, а также фор-мирование навыков безопасного поведения на дорогах у детей и подростков («Внимание - дети!», «Пристегнись!», «Пешеход на пере-ход», ","2","9","РБ",123,123,123,0,0,0,0,0,0,0,0,0,0,"штук","Мероприятия не выполнялись, в связи с дефицитом финансовых средств."]
[11,1,"Проведение серий широкомасштабных информационно - пропагандистских социаль-ных кампаний и акций, направленных на фор-мирование устойчивых навыков законопос-лушного поведения на дорогах, а также фор-мирование навыков безопасного поведения на дорогах у детей и подростков («Внимание - дети!», «Пристегнись!», «Пешеход на переход», ","2","9","ВБИ",30,30,30,0,30,1,1,30,30,0,30,30,2,"меропр."," Проведены республиканские конкурсы \"Дорога Без Опасности\", \"Перекресток\"."]
[12,1,"Разработка и изготовление пособий для педагогов по реализации образовательных программ по правилам дорожного движения","3","17","РБ",10,10,10,0,10,0,1,0,0,10,0,0,140,"штук"," Республиканским центром дополнительного образования детей разработана программа \"Азбука безопасности\" для детей 7-11 лет и методические рекомендации по организации и осуществлению перевозок групп детей."]
[13,1,"Обустройство  опасных участков автомобильных дорог республиканского или межмуниципального и местного значения  дорожными ограждениями, в том числе разделяющие встречные направления движения, разметка","5",null,"ВБИ",9157.7000000000007,9157.7000000000007,9157.7000000000007,0,9157.7000000000007,0,11,6500,2657.7,0,6500,2657.7,80092.03,"кв.м","Выполнены работы по нанесению дорожной разметки на 42809,32 кв.м, в том числе ручное (пешеходные переходы) нанесение дорожной разметки - 26792,32 кв.м (белый фон - 18035,0 кв.м, желтый фон - 8757,32 кв.м), машинное (осевая) -  16017,0 кв.м. Выполнены адороге А-162 горизонтальная разметка: подъезд к с. Кара-Хаак-4367 кв.м; подъезд к ст. Тайга-5889,5 кв.м;Кызыл-Ээрбек-Баян-Кол-6257,25 кв.м., подъезд к п. Хову-Аксы-14649,4 кв.м.; подъезд к с. Торгалыг -4064,08 кв.м., подъезд к с. Чодураа-861,25 кв.м.; Чадан-Бажын-Алаак-1194,25 кв.м."]
[14,1,"Создание  условий  для безопасного и комфортного движения пешеходов, обустройству пешеходных переходов на автомобильных дорогах федерального, регионального или межмуниципального значения (установка барьерных ограждений, светофорных объектов в населенных пунктах на светоизлучающих диодах, с современными управляющими контролерами, звуковыми сопровождающими устройствами, включая ремонт, выполнение работ по искусственному освещению улиц и мест концентрации ДТП с применением инженерных  и технических мер)","5","7,9,11","ВБИ",4895,3200,3200,0,3200,0,4,2100,2100,0,2100,2100,506,"штук","На территории г.Кызыла проводились работы: по установке светильников -306 шт.                                    по замене ламп накаливания на ДНАТ-250, в количестве 506 штук."]
[15,1,"Приобретение аппаратно-программного комплекса \"Дорожный пристав\"","2","7","РБ",273,273,273,0,273,0,1,273,273,0,273,273,1,"ед.","В целях увеличения собираемости штрафов от административных правонарушений в бюджет республики."]
[16,1,"Приобретение тренажерного оборудования по обучению водителей, сотрудников экстренных служб, медицинских работников, участвующих в ликвидации ДТП, приемам оказания первой медицинской помощи лицам, пострадавшим в ДТП","6","12","РБ",594,594,594,0,594,0,1,594,594,0,594,594,6,"штук","Приобретены:                                                         -  манекен-имитатор «Виктим» - 2 шт.;\n- торс для отработки навыков вентиляции ВиртуШок – 1 шт.;\n- набор муляжей травм – 2 шт.;\n- фантом отработки процедуры катетеризации центральных вен – 1 шт.\n"]
[17,1,"Приобретение оргтехники для отдела  видеофиксации","2","7","РБ",78,78,78,0,78,0,1,0,0,78,0,0,2,"штук","Приобретены принтеры для отдела видеофиксации"]
[]
[]
["Министр дорожно-транспортного комплекса Республики Тыва ",null,null,null,null,null,null,null,null,null,"О.О.Бады"]
["(Должность лица администрации субъекта РФ.ю ответственного за реализацию федеральной целевой программы)",null,null,null,null,null,"(подпись)",null,null,null,"(Ф.И.О)"]
["Ведущий специалист",null,null,null,null,null,null,null,null,null,"К.К. Суктер-оол"]
["(Должность лица администрации субъекта РФ.ю ответственного за реализацию федеральной целевой программы)",null,null,null,null,null,"(подпись)",null,null,null,"(Ф.И.О)"]
[null,null,null,null,null,null,null,null,null,null,"8(39422) 2-63-05",null,null,null,null,"mindortrans_rt07@mail.ru"]

{"sheet":"Мероприятия ФЦП","index":7,"n_rows":6058,"n_cols":9,"rows_kept":6058,"cut":false,"hidden":false,"merged":[]}
[null,null,null,null,null,null,"Перечень мероприятий ФЦП\nв соответствии с Постановлением Правительства Российской Федерации от 03.10.2013 № 864"]
["КОД мер.","Направление ФЦП (№ Приложения к ФЦП)","Направление ФЦП","№ мероприя-тия","СоФинан-сирование","Ключевые слова","ПОЛНОЕ НАИМЕНОВАНИЕ МЕРОПРИЯТИЯ","ВИД РАСХОДОВ","Гос. заказчик"]
["0","0"]
["2/1","2","Развитие системы предупреждения опасного поведения участников дорожного движения","1","нет","Комплексные научные исследования; эффективность средств повышения контроля БДД ","Выполнение комплексных научных исследований с применением методов математического анализа в области систематизации и оценки эффективности средств повышения и контроля безопасности дорожного движения, в том числе разработка типовых решений и макетов для практического внедрения  наиболее эффективных средств в практику профилактики дорожно-транспортных происшествий на федеральном, региональном и муниципальном уровнях","НИОКР","МВД России"]
["2/2","2","Развитие системы предупреждения опасного поведения участников дорожного движения","2","нет",null,"Проведение научных исследований, разработка условий и требований по нормативно-правовому обеспечению внедрения и развития сервисов интеллектуальных транспортных систем в сфере обеспечения безопасности дорожного движения, повышения качества функционирования региональных транспортных систем и работы автомобильного транспорта","НИОКР","Минтранс России"]
["2/3","2","Развитие системы предупреждения опасного поведения участников дорожного движения","3","нет",null,"Разработка научно-обоснованных предложений по совершенствованию системы подготовки и непрерывного повышения квалификации специалистов, ответственных за обеспечение безопасного функционирования автомобильного транспорта, и ее гармонизации с международной системой профессиональной подготовки. Разработка курсов дистанционного обучения и методики оценки освоения учебных материалов при дистанционной форме обучения","НИОКР","Минтранс России"]
["2/4","2","Развитие системы предупреждения опасного поведения участников дорожного движения","4","нет",null,"Разработка комплексного проекта совершенствования системы подготовки водителей транспортных средств различных категорий, включая водителей из числа лиц с ограниченными физическими возможностями, организационно-методических рекомендаций, программ, учебных и методических пособий, образовательных ресурсов (в том числе в электронном виде) по обучению вождению транспортных средств различных категорий","НИОКР","Минобрнауки России"]
["2/5","2","Развитие системы предупреждения опасного поведения участников дорожного движения","5","да","Контроль и выявление нарушений правил дорожного движения","Оснащение системами автоматического контроля и выявления нарушений правил дорожного движения улично-дорожной сети городов и населенных пунктов, дорог регионального и муниципального значения (не менее 3936 комплексов)","Капитальные вложения","МВД России"]
["2/6","2","Развитие системы предупреждения опасного поведения участников дорожного движения","6","нет",null,"Техническое перевооружение, строительство, реконструкция центров по подготовке (переподготовке), дополнительного профессионального образования, повышения квалификации специалистов в области обеспечения безопасности дорожного движения (не менее 10,2 тыс. кв.м.)","Капитальные вложения","МВД России"]
["2/7","2","Развитие системы предупреждения опасного поведения участников дорожного движения","7","нет",null,"Создание 3 федеральных центров по подготовке и повышению квалификации специалистов, занимающихся обучением водителей транспортных средств, специалистов по приему квалификационных экзаменов на право управления транспортными средствами различных категорий и подкатегорий, водителей транспортных средств различных категорий, включая водителей транспортных средств из числа людей с ограниченными физическими возможностями, по подготовке и повышению квалификации специалистов по обучению управлению транспортными средствами лиц с ограниченными физическими возможностями на базе образовательных организаций высшего образования (до 30 тыс. кв. метров плоскостных сооружений (оборудованные площадки по обучению)","Капитальные вложения","Минобрнауки России"]
["2/8","2","Развитие системы предупреждения опасного поведения участников дорожного движения","8","да",null,"Создание и тиражирование и передача конечным пользователям учебно-методических и наглядных пособий, учебных фильмов, игр, программ для участников дорожного движения разных возрастных категорий, в том числе с использованием мультимедийных средств, освещающих вопросы безопасности дорожного движения","Прочие нужды","МВД России"]
["2/9","2","Развитие системы предупреждения опасного поведения участников дорожного движения","9","нет",null,"Проведение информационно-пропагандистских кампаний, использующих наиболее действенные каналы коммуникации, с целью повышения грамотности, ответственности и уровня самосознания участников дорожного движения и профилактики факторов риска, влияющих на количество дорожно-транспортных происшествий и тяжесть их последствий","Прочие нужды","МВД России"]
["2/10","2","Развитие системы предупреждения опасного поведения участников дорожного движения","10","да",null,"Подготовка и создание информационно-пропагандистских телерадиопрограмм, направленных на участников дорожного движения, для последующего размещения на федеральных, региональных и кабельных телевизионных каналах, радиостанциях","Прочие нужды","МВД России"]
["2/11","2","Развитие системы предупреждения опасного поведения участников дорожного движения","11","да",null,"Организация в печатных и электронных средствах массовой информации специальных тематических рубрик для систематического освещения проблемных вопросов по безопасности дорожного движения, выпуск специализированной печатной продукции","Прочие нужды","МВД России"]
["2/12","2","Развитие системы предупреждения опасного поведения участников дорожного движения","12","нет",null,"Подготовка и издание учебно-методических и наглядных пособий, фильмов и других материалов, а также издание комплектов учебно-методических материалов по курсу дистанционного обучения специалистов, ответственных за обеспечение безопасного функционирования автомобильного транспорта","Прочие нужды","Минтранс России"]
["2/13","2","Развитие системы предупреждения опасного поведения участников дорожного движения","13","нет",null,"Материально-техническое обеспечение Федерального бюджетного учреждения «Агентство автомобильного транспорта» (ФБУ \"Росавтотранс\") (оборудование, программные комплексы) в целях подготовки водителей, повышения квалификации инженерно-технического и руководящего состава автотранспортных предприятий, а также обучения контрольно-надзорных органов в сфере автомобильного транспорта","Прочие нужды","Минтранс России"]
["2/14","2","Развитие системы предупреждения опасного поведения участников дорожного движения","14","нет",null,"Ежегодное проведение всероссийского конкурса профессионального мастерства водителей транспортных средств, проведение комплексной информационно-пропагандистской кампании, направленной на водителей коммерческого, грузового и пассажирского транспорта, в целях повышения их ответственности и культуры поведения на дороге, подготовка тематических телепрограмм","Прочие нужды","Минтранс России"]
["2/15","2","Развитие системы предупреждения опасного поведения участников дорожного движения","15","нет",null,"Учебно-методическое обеспечение (техническими средствами обучения, наглядными, учебными и методическими пособиями, электронными образовательными ресурсами) федеральных центров по подготовке и повышению квалификации специалистов, занимающихся обучением водителей транспортных средств, специалистов по приему квалификационных экзаменов на право управления транспортными средствами различных категорий и подкатегорий, водителей транспортных средств различных категорий, включая водителей  транспортных средств из числа людей с ограниченными физическими возможностями","Прочие нужды","Минобрнауки России"]
["2/16","2","Развитие системы предупреждения опасного поведения участников дорожного движения","16","нет",null,"Разработка организационно-методических рекомендаций, обеспечивающих внедрение программ подготовки и переподготовки водителей транспортных средств различных категорий и подкатегорий, мониторинг их применения, в том числе водителей из числа лиц с ограниченными физическими возможностями, специальных методических рекомендаций для создания федеральных центров по подготовке и повышению квалификации специалистов, занимающихся обучением водителей транспортных средств, а также специалистов по приему квалификационных экзаменов на право управления транспортными средствами различных категорий и подкатегорий, по подготовке и переподготовке водителей различных категорий, водителей из числа лиц с ограниченными физическими возможностями","Прочие нужды","Минобрнауки России"]
["2/17","2","Развитие системы предупреждения опасного поведения участников дорожного движения","17","нет",null,"Издание и рассылка научно-методических материалов, образовательных ресурсов (в том числе в электронном виде) для совершенствования подготовки водителей из числа лиц с ограниченными физическими возможностями","Прочие нужды","Минобрнауки России"]
["3/1","3","Обеспечение безопасного участия детей в дорожном движении","1","нет",null,"Разработка комплексного проекта профилактики детского дорожно-транспортного травматизма на период 2013 - 2020 годов, программ, учебно-методических пособий, образовательных ресурсов (в том числе в электронном виде), разработка специализированного интернет-портала по обучению безопасному участию в дорожном движении учащихся, воспитанников дошкольных образовательных учреждений и общеобразовательных учреждений, учреждений дополнительного образования, в том числе с использованием инновационных образовательных продуктов и современных компьютерных технологий","НИОКР","Минобрнауки России"]
["3/2","3","Обеспечение безопасного участия детей в дорожном движении","2","нет",null,"Разработка модульных программ повышения квалификации педагогических работников дошкольных образовательных учреждений и общеобразовательных учреждений, учреждений дополнительного образования по вопросам обучения учащихся, воспитанников навыкам безопасного участия в дорожном движении и рекомендаций по их использованию","НИОКР","Минобрнауки России"]
["3/3","3","Обеспечение безопасного участия детей в дорожном движении","3","нет",null,"Разработка оборудования (уголки по правилам дорожного движения, тренажеры, компьютерные программы и др.) для образовательных учреждений в целях использования их в процессе обучения детей безопасному участию в дорожном движении","НИОКР","Минобрнауки России"]
["3/4","3","Обеспечение безопасного участия детей в дорожном движении","4","нет",null,"Разработка программ, учебно-методических материалов для курсов по обучению вождению транспортных средств в системе дополнительного образования детей","НИОКР","Минобрнауки России"]
["3/5","3","Обеспечение безопасного участия детей в дорожном движении","5","да",null,"Приобретение мобильных автогородков для организаций в субъектах Российской Федерации, осуществляющих деятельность по формированию у детей дошкольного и школьного возраста навыков безопасного поведения на улично-дорожной сети (закупка не менее 269 мобильных автогородков)","Капитальные вложения","МВД России"]
["3/6","3","Обеспечение безопасного участия детей в дорожном движении","6","нет",null,"Создание федеральных экспериментальных центров (полигонов) \"Детский автогород\" (не менее 3 центров с общей территорией до 4,5 тыс. кв.м учебных помещений (зданий) и 60,0 тыс. кв.м плоскостных сооружений (оборудованные площадки автогородов)","Капитальные вложения","Минобрнауки России"]
["3/7","3","Обеспечение безопасного участия детей в дорожном движении","7","да",null,"Строительство детских автогородков, организация на их основе базовых учебно-методических центров по изучению детьми, а также педагогическим составом общеобразовательных учреждений, учреждений дополнительного образования детей и дошкольных образовательных учреждений основ безопасного участия в дорожном движении (не менее 40 автогородков, не менее 20 тыс.кв.м.)","Капитальные вложения","Минобрнауки России"]
["3/8","3","Обеспечение безопасного участия детей в дорожном движении","8","да",null,"Приобретение для дошкольных образовательных учреждений оборудования, позволяющего в игровой форме формировать навыки безопасного поведения на улично- дорожной сети (закупка не менее 1390 комплектов учебного оборудования)","Прочие нужды","МВД России"]
["3/9","3","Обеспечение безопасного участия детей в дорожном движении","9","да",null,"Обеспечение проведения тематических информационно-пропагандистских мероприятий, межгосударственных слетов, всероссийских конкурсов, фестивалей с несовершеннолетними участниками дорожного движения, в том числе общественными формированиями детей","Прочие нужды","МВД России"]
["3/10","3","Обеспечение безопасного участия детей в дорожном движении","10","да",null,"Изготовление и распространение световозвращающих приспособлений в среде дошкольников и учащихся младших классов образовательных учреждений (не менее 15 млн. штук)","Прочие нужды","МВД России"]
["3/11","3","Обеспечение безопасного участия детей в дорожном движении","11","нет",null,"Разработка организационно-методических рекомендаций, обеспечивающих функционирование системы обучения безопасному участию в дорожном движении и профилактики детского дорожно-транспортного травматизма, а также организационно-методических рекомендаций и образовательных ресурсов, обеспечивающих внедрение программ и организацию обучения вождению транспортных средств различных категорий в образовательных учреждениях и учреждениях дополнительного образования, обеспечение деятельности специализированного интернет-портала по обучению безопасному участию в дорожном движении учащихся, воспитанников дошкольных образовательных учреждений и общеобразовательных учреждений, учреждений дополнительного образования","Прочие нужды","Минобрнауки России"]
["3/12","3","Обеспечение безопасного участия детей в дорожном движении","12","нет",null,"Проведение всероссийских массовых мероприятий с детьми (конкурсы, фестивали отрядов юных инспекторов движения \"Безопасное колесо\", профильные смены активистов отрядов юных инспекторов движения, чемпионаты юношеских автошкол по автомногоборью, конкурсы образовательных учреждений по профилактике детского дорожно-транспортного травматизма) по профилактике детского дорожно-транспортного травматизма и обучению безопасному участию в дорожном движении","Прочие нужды","Минобрнауки России"]
["3/13","3","Обеспечение безопасного участия детей в дорожном движении","13","нет",null,"Издание и рассылка научно-методических материалов, печатных и электронных учебных пособий, образовательных ресурсов для дошкольных образовательных учреждений, общеобразовательных учреждений и учреждений дополнительного образования по обучению детей безопасному участию в дорожном движении (обеспечение образовательных учреждений пилотными комплектами учебных пособий и программ), в том числе учебно-методических пособий по работе с родителями и детьми в целях профилактики детских дорожно-транспортных происшествий, проведение родительского всеобуча, семейных конкурсов на знание правил дорожного движения","Прочие нужды","Минобрнауки России"]
["3/14","3","Обеспечение безопасного участия детей в дорожном движении","14","нет",null,"Мониторинг состояния материальной и учебно-методической базы общеобразовательных учреждений по обучению детей правилам дорожного движения и формированию у них навыков безопасного участия в дорожном движении","Прочие нужды","Минобрнауки России"]
["3/15","3","Обеспечение безопасного участия детей в дорожном движении","15","нет",null,"Реализация типовых проектов мобильных автогородков (создание опытных образцов мобильных автогородков и проведение их апробации) для обучения с их помощью детей и педагогического состава общеобразовательных и дошкольных образовательных учреждений, учреждений дополнительного образования основам безопасного участия в дорожном движении (не менее 6 мобильных автогородков)","Прочие нужды","Минобрнауки России"]
["3/16","3","Обеспечение безопасного участия детей в дорожном движении","16","нет",null,"Учебно-методическое обеспечение техническими средствами обучения, наглядными, учебными и методическими пособиями, электронными образовательными ресурсами федеральных экспериментальных центров (полигонов) \"Детский автогород\"","Прочие нужды","Минобрнауки России"]
["3/17","3","Обеспечение безопасного участия детей в дорожном движении","17","нет",null,"Повышение квалификации (в том числе по модульным курсам) преподавательского состава общеобразовательных учреждений, учреждений дополнительного образования и дошкольных образовательных учреждений в сфере формирования у детей навыков безопасного участия в дорожном движении","Прочие нужды","Минобрнауки России"]
["3/18","3","Обеспечение безопасного участия детей в дорожном движении","18","да",null,"Оснащение техническими средствами обучения, оборудованием и учебно-методическими материалами детских автогородков","Прочие нужды","Минобрнауки России"]
["4/1","4","Повышение уровня технического состояния эксплуатирующихся транспортных средств, их активной и пассивной безопасности","1","нет",null,"Проведение научных исследований и разработка рекомендаций по возможности использования современных систем повышения активной безопасности автомобилей с учетом российских условий эксплуатации. Разработка методов оценки эффективности электронных систем контроля устойчивости (EVSC) коммерческих транспортных средств на основании анализа соответствующих международных документов и с учетом российских условий эксплуатации","НИОКР","Минпромторг России"]
["4/2","4","Повышение уровня технического состояния эксплуатирующихся транспортных средств, их активной и пассивной безопасности","2","нет",null,"Проведение поисковых исследований и создание перспективных технологий по защите от поражения электрическим током на автомобилях с комбинированной энергетической установкой и электромобилях","НИОКР","Минпромторг России"]
["4/3","4","Повышение уровня технического состояния эксплуатирующихся транспортных средств, их активной и пассивной безопасности","3","нет",null,"Проведение научных исследований в области пассивной безопасности транспортных средств, направленных на снижение травмирования водителей, пассажиров и пешеходов при дорожно-транспортных происшествиях","НИОКР","Минпромторг России"]
["4/4","4","Повышение уровня технического состояния эксплуатирующихся транспортных средств, их активной и пассивной безопасности","4","нет",null,"Проведение научных исследований с целью создания перспективной методологии подготовки водителей транспортных средств на базе компьютерных обучающих программ и модельного ряда автотренажеров различной степени сложности","НИОКР","Минпромторг России"]
["4/5","4","Повышение уровня технического состояния эксплуатирующихся транспортных средств, их активной и пассивной безопасности","5","нет",null,"Обоснование технических требований и адаптация конструкций транспортных средств с компонентами электронных систем, обеспечивающих выполнение перспективных требований технического законодательства в области безопасности колесных транспортных средств, посредством внедрения элементов интеллектуальных транспортных систем в целях повышения активной безопасности: системы автоматической регистрации параметров движения транспортных средств; системы регистрации параметров дорожно-транспортных происшествий; системы автоматического экстренного торможения (AEBS); системы предупреждения о выходе с полосы движения (LDWS); электронных систем контроля устойчивости и помощи водителю при экстренном торможении; систем мониторинга давления воздуха в шинах; систем контроля состояния водителя","Прочие нужды","Минпромторг России"]
["4/6","4","Повышение уровня технического состояния эксплуатирующихся транспортных средств, их активной и пассивной безопасности","6","нет",null,"Разработка прикладных программ моделирования движения автотранспортных средств для расчета параметров активной безопасности. Проведение виртуальных исследований движения транспортных средств с интеллектуальными системами активной безопасности в различных критических и экстремальных условиях","Прочие нужды","Минпромторг России"]
["4/7","4","Повышение уровня технического состояния эксплуатирующихся транспортных средств, их активной и пассивной безопасности","7","нет",null,"Материально-техническое, метрологическое и методологическое обеспечение проведения научных исследований, направленных на повышение активной и пассивной безопасности автотранспортных средств","Прочие нужды","Минпромторг России"]
["5/1","5","Развитие системы организации движения транспортных средств и пешеходов и повышение безопасности дорожных условий","1","нет",null,"Проведение научных исследований, направленных на разработку современных методов организации дорожного движения, в том числе основанных на исследовании влияния режимов движения транспортных потоков на безопасность дорожного движения","НИОКР","Минтранс России"]
["5/2","5","Развитие системы организации движения транспортных средств и пешеходов и повышение безопасности дорожных условий","2","нет",null,"Разработка научно обоснованных предложений по созданию, развитию и функционированию единого парковочного пространства в городах Российской Федерации","НИОКР","Минтранс России"]
["5/3","5","Развитие системы организации движения транспортных средств и пешеходов и повышение безопасности дорожных условий","3","нет",null,"Разработка научно обоснованных предложений по системе оценки качества и эффективности организации дорожного движения в Российской Федерации","НИОКР","Минтранс России"]
["5/4","5","Развитие системы организации движения транспортных средств и пешеходов и повышение безопасности дорожных условий","4","нет",null,"Разработка методики проведения аудита безопасности движения при проектировании, строительстве и эксплуатации автомобильных дорог","НИОКР","Росавтодор"]
["5/5","5","Развитие системы организации движения транспортных средств и пешеходов и повышение безопасности дорожных условий","5","нет",null,"Разработка методических документов по созданию и развитию интеллектуальных транспортных систем","НИОКР","Росавтодор"]
["5/6","5","Развитие системы организации движения транспортных средств и пешеходов и повышение безопасности дорожных условий","6","да",null,"Строительство в местах повышенной аварийности в городах и населенных пунктах быстровозводимых конструкций надземных пешеходных переходов (не менее 300)","Капитальные вложения","МВД России"]
["5/7","5","Развитие системы организации движения транспортных средств и пешеходов и повышение безопасности дорожных условий","7","да",null,"Реконструкция, строительство на участках улично-дорожной сети городов и населенных пунктов пешеходных ограждений, в том числе в зоне пешеходных переходов (не менее 809 км)","Капитальные вложения","МВД России"]
["5/8","5","Развитие системы организации движения транспортных средств и пешеходов и повышение безопасности дорожных условий","8","да",null,"Строительство, реконструкция, техническое перевооружение нерегулируемых пешеходных переходов, в том числе прилегающих непосредственно к дошкольным образовательным учреждениям, образовательным учреждениям и учреждениям дополнительного образования детей, освещением, искусственными дорожными неровностями, светофорами Т.7, системами светового оповещения, дорожными знаками с внутренним освещением и светодиодной индикацией, Г-образными опорами, дорожной разметкой, в том числе с применением штучных форм и цветных дорожных покрытий, световозвращателями и индикаторами, а также устройствами дополнительного освещения и другими элементами повышения безопасности дорожного движения (не менее 2427 переходов)","Капитальные вложения","МВД России"]
["5/9","5","Развитие системы организации движения транспортных средств и пешеходов и повышение безопасности дорожных условий","9","да",null,"Строительство, реконструкция, техническое перевооружение светофорных объектов (не менее 2874)","Капитальные вложения","МВД России"]
["5/10","5","Развитие системы организации движения транспортных средств и пешеходов и повышение безопасности дорожных условий","10","нет",null,"Строительство, реконструкция и техническое перевооружение пересечений на автомобильных дорогах общего пользования федерального значения в целях увеличения пропускной способности и совершенствования организации дорожного движения (не менее 81 пересечения)","Капитальные вложения","Росавтодор"]
["5/11","5","Развитие системы организации движения транспортных средств и пешеходов и повышение безопасности дорожных условий","11","нет",null,"Строительство, реконструкция и техническое перевооружение (оборудование искусственным освещением) мест концентрации дорожно-транспортных происшествий на участках автомобильных дорог общего пользования федерального значения, проходящих по территориям населенных пунктов (не менее 144 мест концентрации дорожно-транспортных происшествий)","Капитальные вложения","Росавтодор"]
["5/12","5","Развитие системы организации движения транспортных средств и пешеходов и повышение безопасности дорожных условий","12","нет",null,"Создание аппаратно-программного комплекса автоматизированного учета и предоставления тахографической информации для осуществления контрольно-надзорной деятельности в области организации движения транспортных средств, соблюдения маршрута движения, режима труда и отдыха водителей","Прочие нужды","Минтранс России"]
["5/13","5","Развитие системы организации движения транспортных средств и пешеходов и повышение безопасности дорожных условий","13","нет",null,"Проведение специализированных обучающих конференций и семинаров, посвященных вопросам совершенствования организации дорожного движения, освещение проблем организации дорожного движения в средствах массовой информации","Прочие нужды","Минтранс России"]
["5/14","5","Развитие системы организации движения транспортных средств и пешеходов и повышение безопасности дорожных условий","14","нет",null,"Подготовка ежегодных аналитических обзоров и предложений по совершенствованию законодательного и нормативно-правового регулирования в сфере обеспечения безопасности автомобильных перевозок пассажиров и грузов","Прочие нужды","Минтранс России"]
["5/15","5","Развитие системы организации движения транспортных средств и пешеходов и повышение безопасности дорожных условий","15","нет",null,"Освещение проблем организации дорожного движения в средствах массовой информации","Прочие нужды","Росавтодор"]
["5/16","5","Развитие системы организации движения транспортных средств и пешеходов и повышение безопасности дорожных условий","16","нет",null,"Разработка программного продукта по информационному обмену данными между Росавтодором, ГИБДД и МЧС России","Прочие нужды","Росавтодор"]
["6/1","6","Развитие системы оказания помощи пострадавшим в дорожно-транспортных происшествиях","1","нет",null,"Проведение научных исследований, направленных на совершенствование нормативной и методической базы в области ликвидации последствий дорожно-транспортных происшествий","НИОКР","МЧС России"]
["6/2","6","Развитие системы оказания помощи пострадавшим в дорожно-транспортных происшествиях","2","нет",null,"Разработка научно-обоснованных предложений по совершенствованию информационно-аналитического обеспечения функционирования системы ликвидации последствий дорожно-транспортных происшествий","НИОКР","МЧС России"]
["6/3","6","Развитие системы оказания помощи пострадавшим в дорожно-транспортных происшествиях","3","нет",null,"Строительство учебно-тренировочного комплекса для подготовки сотрудников МЧС России и отработки действий экстренных служб, участвующих в ликвидации последствий дорожно-транспортных происшествий в Сибирском федеральном округе (пос. Дивногорск, Красноярский край) (не менее 1,7 тыс. кв. метров)","Капитальные вложения","МЧС России"]
["6/4","6","Развитие системы оказания помощи пострадавшим в дорожно-транспортных происшествиях","4","нет",null,"Строительство и реконструкция натурных площадок для отработки современных методов и способов ликвидации последствий дорожно-транспортных происшествий (не менее 800 кв. метров)","Капитальные вложения","МЧС России"]
["6/5","6","Развитие системы оказания помощи пострадавшим в дорожно-транспортных происшествиях","5","нет","Внедрение техники для аварийно-спасательных работ","Внедрение современных образцов специальной  техники, инструмента, оборудования и технологий, предназначенных для проведения аварийно-спасательных работ, в подразделения МЧС России, привлекаемые к ликвидации последствий дорожно-транспортных происшествий","Прочие нужды","МЧС России"]
["6/6","6","Развитие системы оказания помощи пострадавшим в дорожно-транспортных происшествиях","6","нет",null,"Практическая отработка вопросов взаимодействия экстренных служб и проведения аварийно-спасательных работ при ликвидации последствий дорожно-транспортных происшествий","Прочие нужды","МЧС России"]
["6/7","6","Развитие системы оказания помощи пострадавшим в дорожно-транспортных происшествиях","7","нет",null,"Организационно-методическое и техническое обеспечение подразделений МЧС России, осуществляющих профессиональную подготовку и повышение квалификации личного состава, принимающего участие в ликвидации дорожно-транспортных происшествий","Прочие нужды","МЧС России"]
["6/8","6","Развитие системы оказания помощи пострадавшим в дорожно-транспортных происшествиях","8","нет",null,"Участие МЧС России в коммуникативных мероприятиях (конференциях, форумах, выставках и иных общественных  мероприятиях) в области безопасности дорожного движения и оказания помощи пострадавшим в дорожно-транспортных происшествиях","Прочие нужды","МЧС России"]
["6/9","6","Развитие системы оказания помощи пострадавшим в дорожно-транспортных происшествиях","9","нет",null,"Развитие Центра мониторинга ликвидации последствий дорожно-транспортных происшествий МЧС России","Прочие нужды","МЧС России"]
["6/10","6","Развитие системы оказания помощи пострадавшим в дорожно-транспортных происшествиях","10","нет",null,"Разработка информационных и методических материалов для взрослой и детской аудиторий, информирующих о правилах оказания первой помощи пострадавшим в дорожно-транспортных происшествиях ","Прочие нужды","Минздрав России"]
["6/11","6","Развитие системы оказания помощи пострадавшим в дорожно-транспортных происшествиях","11","нет",null,"Тиражирование и распространение информационных и методических материалов для взрослой и детской аудиторий, информирующих о правилах оказания первой помощи пострадавшим в дорожно-транспортных происшествиях ","Прочие нужды","Минздрав России"]
["6/12","6","Развитие системы оказания помощи пострадавшим в дорожно-транспортных происшествиях","12","да",null,"Оснащение медицинских организаций автомобилями скорой медицинской помощи класса «С» для оказания скорой медицинской помощи пациентам, пострадавшим при дорожно-транспортных происшествиях","Прочие нужды","Минздрав России"]
["6/13","6","Развитие системы оказания помощи пострадавшим в дорожно-транспортных происшествиях","13","нет",null,"Проведение Всероссийского конкурса профессионального мастерства среди работников скорой медицинской помощи, медицины катастроф и работников экстренных оперативных служб по оказанию первой и медицинской помощи пострадавшим при дорожно-транспортных происшествиях","Прочие нужды","Минздрав России"]
["7/1","7","Совершенствование нормативно-правового, организационного и методического обеспечения деятельности в сфере обеспечения безопасности дорожного движения","1","нет",null,"Разработка механизма по установлению индивидуальных целевых заданий для субъектов Российской Федерации по снижению уровня дорожно-транспортной аварийности на период до 2020 года и закреплению субсидиарной ответственности федерального центра и субъектов Российской Федерации за достижение целей деятельности по обеспечению безопасности дорожного движения","НИОКР","МВД России"]
["7/2","7","Совершенствование нормативно-правового, организационного и методического обеспечения деятельности в сфере обеспечения безопасности дорожного движения","2","нет",null,"Изучение существующих положений и построение научно-обоснованных моделей разграничения полномочий (сфер ответственности) органов исполнительной власти различного уровня, органов местного самоуправления","НИОКР","МВД России"]
["7/3","7","Совершенствование нормативно-правового, организационного и методического обеспечения деятельности в сфере обеспечения безопасности дорожного движения","3","нет",null,"Проведение комплексных научных исследований, направленных на создание аналитических методов поддержки принятия решений и управления в сфере безопасности дорожного движения с учетом федерального, регионального и местного аспектов, а также на разработку механизмов комплексной оценки и анализа эффективности и результативности текущей и программной деятельности","НИОКР","МВД России"]
["7/4","7","Совершенствование нормативно-правового, организационного и методического обеспечения деятельности в сфере обеспечения безопасности дорожного движения","4","нет",null,"Разработка действенных механизмов по привлечению внебюджетных финансовых средств в приоритетные проекты обеспечения безопасности дорожного движения, развитию государственно-частного партнерства, созданию эффективных саморегулируемых организаций, а также методов аутсорсинга в сфере обеспечения безопасности дорожного движения","НИОКР","МВД России"]
["7/5","7","Совершенствование нормативно-правового, организационного и методического обеспечения деятельности в сфере обеспечения безопасности дорожного движения","5","нет",null,"Проведение научных исследований в области применения программных продуктов математического моделирования транспортных потоков при разработке комплексных схем организации дорожного движения, проектов организации дорожного движения, а также проектов автоматизированных систем управления дорожным движением. Разработка предложений по нормативному и методическому обеспечению использования программных продуктов при проектировании в сфере организации дорожного движения","НИОКР","Минтранс России"]
["7/6","7","Совершенствование нормативно-правового, организационного и методического обеспечения деятельности в сфере обеспечения безопасности дорожного движения","6","нет",null,"Текущее управление Программой (содержание федерального казенного учреждения «Дирекция по управлению федеральной целевой программой «Повышение безопасности дорожного движения в 2006 - 2012 годах» )","Прочие нужды","МВД России"]
["7/7","7","Совершенствование нормативно-правового, организационного и методического обеспечения деятельности в сфере обеспечения безопасности дорожного движения","7","нет",null,"Проведение специализированных семинаров, посвященных обмену опытом по обеспечению безопасности дорожного движения и внедрению на региональном и муниципальном уровнях результатов научно-исследовательских и опытно-конструкторских работ, выполненных в рамках реализации Программы","Прочие нужды","МВД России"]
["7/8","7","Совершенствование нормативно-правового, организационного и методического обеспечения деятельности в сфере обеспечения безопасности дорожного движения","8","нет",null,"Создание аналитических систем управления безопасностью дорожного движения МВД России","Прочие нужды","МВД России"]
["7/9","7","Совершенствование нормативно-правового, организационного и методического обеспечения деятельности в сфере обеспечения безопасности дорожного движения","9","нет",null,"Подготовка и периодическое повышение квалификации работников управлений госавтодорнадзора Ространснадзора по осуществлению контрольно-надзорных функций по соблюдению владельцами транспортных средств установленных требований по параметрам перевозок (режим труда и отдыха водителей, скоростной режим движения и др.) с применением цифровых тахографов","Прочие нужды","Минтранс России"]
["2"]
["3"]
["4"]
["5"]
["6"]
["7"]
[]
[]
[]
[]
[]
[]
[]
[]
[]
[]
[]
[]
[]
[]
[]
[]
[]
[]
[]
[]
[]
[]
[]
[]
[]
[]
[]
[]
[]
[]
[]
[]
[]
[]
[]
[]
[]
[]
[]
[]
[]
[]
[]
[]
[]
[]
[]
[]
[]
[]
[]
[]
[]
[]
[]
[]
[]
[]
[]
[]
[]
[]
[]
[]
[]
[]
[]
[]
[]
[]
[]
[]
[]
[]
[]
[]
[]
[]
[]
[]
[]
[]
[]
[]
[]
[]
[]
[]
[]
[]
[]
[]
[]
[]
[]
[]
[]
[]
[]
[]
[]
[]
[]
[]
[]
[]
[]
[]
[]
[]
[]
[]
[]
[]
[]
[]
[]
[]
[]
[]
[]
[]
[]
[]
[]
[]
[]
[]
[]
[]
[]
[]
[]
[]
[]
[]
[]
[]
[]
[]
[]
[]
[]
[]
[]
[]
[]
[]
[]
[]
[]
[]
[]
[]
[]
[]
[]
[]
[]
[]
[]
[]
[]
[]
[]
[]
[]
[]
[]
[]
[]
[]
[]
[]
[]
[]
[]
[]
[]
[]
[]
[]
[]
[]
[]
[]
[]
[]
[]
[]
[]
[]
[]
[]
[]
[]
[]
[]
[]
[]
[]
[]
[]
[]
[]
[]
[]
[]
[]
[]
[]
[]
[]
[]
[]
[]
[]
[]
[]
[]
[]
[]
[]
[]
[]
[]
[]
[]
[]
[]
[]
[]
[]
[]
[]
[]
[]
[]
[]
[]
[]
[]
[]
[]
[]
[]
[]
[]
[]
[]
[]
[]
[]
[]
[]
[]
[]
[]
[]
[]
[]
[]
[]
[]
[]
[]
[]
[]
[]
[]
[]
[]
[]
[]
[]
[]
[]
[]
[]
[]
[]
[]
[]
[]
[]
[]
[]
[]
[]
[]
[]
[]
[]
[]
[]
[]
[]
[]
[]
[]
[]
[]
[]
[]
[]
[]
[]
[]
[]
[]
[]
[]
[]
[]
[]
[]
[]
[]
[]
[]
[]
[]
[]
[]
[]
[]
[]
[]
[]
[]
[]
[]
[]
[]
[]
[]
[]
[]
[]
[]
[]
[]
[]
[]
[]
[]
[]
[]
[]
[]
[]
[]
[]
[]
[]
[]
[]
[]
[]
[]
[]
[]
[]
[]
[]
[]
[]
[]
[]
[]
[]
[]
[]
[]
[]
[]
[]
[]
[]
[]
[]
[]
[]
[]
[]
[]
[]
[]
[]
[]
[]
[]
[]
[]
[]
[]
[]
[]
[]
[]
[]
[]
[]
[]
[]
[]
[]
[]
[]
[]
[]
[]
[]
[]
[]
[]
[]
[]
[]
[]
[]
[]
[]
[]
[]
[]
[]
[]
[]
[]
[]
[]
[]
[]
[]
[]
[]
[]
[]
[]
[]
[]
[]
[]
[]
[]
[]
[]
[]
[]
[]
[]
[]
[]
[]
[]
[]
[]
[]
[]
[]
[]
[]
[]
[]
[]
[]
[]
[]
[]
[]
[]
[]
[]
[]
[]
[]
[]
[]
[]
[]
[]
[]
[]
[]
[]
[]
[]
[]
[]
[]
[]
[]
[]
[]
[]
[]
[]
[]
[]
[]
[]
[]
[]
[]
[]
[]
[]
[]
[]
[]
[]
[]
[]
[]
[]
[]
[]
[]
[]
[]
[]
[]
[]
[]
[]
[]
[]
[]
[]
[]
[]
[]
[]
[]
[]
[]
[]
[]
[]
[]
[]
[]
[]
[]
[]
[]
[]
[]
[]
[]
[]
[]
[]
[]
[]
[]
[]
[]
[]
[]
[]
[]
[]
[]
[]
[]
[]
[]
[]
[]
[]
[]
[]
[]
[]
[]
[]
[]
[]
[]
[]
[]
[]
[]
[]
[]
[]
[]
[]
[]
[]
[]
[]
[]
[]
[]
[]
[]
[]
[]
[]
[]
[]
[]
[]
[]
[]
[]
[]
[]
[]
[]
[]
[]
[]
[]
[]
[]
[]
[]
[]
[]
[]
[]
[]
[]
[]
[]
[]
[]
[]
[]
[]
[]
[]
[]
[]
[]
[]
[]
[]
[]
[]
[]
[]
[]
[]
[]
[]
[]
[]
[]
[]
[]
[]
[]
[]
[]
[]
[]
[]
[]
[]
[]
[]
[]
[]
[]
[]
[]
[]
[]
[]
[]
[]
[]
[]
[]
[]
[]
[]
[]
[]
[]
[]
[]
[]
[]
[]
[]
[]
[]
[]
[]
[]
[]
[]
[]
[]
[]
[]
[]
[]
[]
[]
[]
[]
[]
[]
[]
[]
[]
[]
[]
[]
[]
[]
[]
[]
[]
[]
[]
[]
[]
[]
[]
[]
[]
[]
[]
[]
[]
[]
[]
[]
[]
[]
[]
[]
[]
[]
[]
[]
[]
[]
[]
[]
[]
[]
[]
[]
[]
[]
[]
[]
[]
[]
[]
[]
[]
[]
[]
[]
[]
[]
[]
[]
[]
[]
[]
[]
[]
[]
[]
[]
[]
[]
[]
[]
[]
[]
[]
[]
[]
[]
[]
[]
[]
[]
[]
[]
[]
[]
[]
[]
[]
[]
[]
[]
[]
[]
[]
[]
[]
[]
[]
[]
[]
[]
[]
[]
[]
[]
[]
[]
[]
[]
[]
[]
[]
[]
[]
[]
[]
[]
[]
[]
[]
[]
[]
[]
[]
[]
[]
[]
[]
[]
[]
[]
[]
[]
[]
[]
[]
[]
[]
[]
[]
[]
[]
[]
[]
[]
[]
[]
[]
[]
[]
[]
[]
[]
[]
[]
[]
[]
[]
[]
[]
[]
[]
[]
[]
[]
[]
[]
[]
[]
[]
[]
[]
[]
[]
[]
[]
[]
[]
[]
[]
[]
[]
[]
[]
[]
[]
[]
[]
[]
[]
[]
[]
[]
[]
[]
[]
[]
[]
[]
[]
[]
[]
[]
[]
[]
[]
[]
[]
[]
[]
[]
[]
[]
[]
[]
[]
[]
[]
[]
[]
[]
[]
[]
[]
[]
[]
[]
[]
[]
[]
[]
[]
[]
[]
[]
[]
[]
[]
[]
[]
[]
[]
[]
[]
[]
[]
[]
[]
[]
[]
[]
[]
[]
[]
[]
[]
[]
[]
[]
[]
[]
[]
[]
[]
[]
[]
[]
[]
[]
[]
[]
[]
[]
[]
[]
[]
[]
[]
[]
[]
[]
[]
[]
[]
[]
[]
[]
[]
[]
[]
[]
[]
[]
[]
[]
[]
[]
[]
[]
[]
[]
[]
[]
[]
[]
[]
[]
[]
[]
[]
[]
[]
[]
[]
[]
[]
[]
[]
[]
[]
[]
[]
[]
[]
[]
[]
[]
[]
[]
[]
[]
[]
[]
[]
[]
[]
[]
[]
[]
[]
[]
[]
[]
[]
[]
[]
[]
[]
[]
[]
[]
[]
[]
[]
[]
[]
[]
[]
[]
[]
[]
[]
[]
[]
[]
[]
[]
[]
[]
[]
[]
[]
[]
[]
[]
[]
[]
[]
[]
[]
[]
[]
[]
[]
[]
[]
[]
[]
[]
[]
[]
[]
[]
[]
[]
[]
[]
[]
[]
[]
[]
[]
[]
[]
[]
[]
[]
[]
[]
[]
[]
[]
[]
[]
[]
[]
[]
[]
[]
[]
[]
[]
[]
[]
[]
[]
[]
[]
[]
[]
[]
[]
[]
[]
[]
[]
[]
[]
[]
[]
[]
[]
[]
[]
[]
[]
[]
[]
[]
[]
[]
[]
[]
[]
[]
[]
[]
[]
[]
[]
[]
[]
[]
[]
[]
[]
[]
[]
[]
[]
[]
[]
[]
[]
[]
[]
[]
[]
[]
[]
[]
[]
[]
[]
[]
[]
[]
[]
[]
[]
[]
[]
[]
[]
[]
[]
[]
[]
[]
[]
[]
[]
[]
[]
[]
[]
[]
[]
[]
[]
[]
[]
[]
[]
[]
[]
[]
[]
[]
[]
[]
[]
[]
[]
[]
[]
[]
[]
[]
[]
[]
[]
[]
[]
[]
[]
[]
[]
[]
[]
[]
[]
[]
[]
[]
[]
[]
[]
[]
[]
[]
[]
[]
[]
[]
[]
[]
[]
[]
[]
[]
[]
[]
[]
[]
[]
[]
[]
[]
[]
[]
[]
[]
[]
[]
[]
[]
[]
[]
[]
[]
[]
[]
[]
[]
[]
[]
[]
[]
[]
[]
[]
[]
[]
[]
[]
[]
[]
[]
[]
[]
[]
[]
[]
[]
[]
[]
[]
[]
[]
[]
[]
[]
[]
[]
[]
[]
[]
[]
[]
[]
[]
[]
[]
[]
[]
[]
[]
[]
[]
[]
[]
[]
[]
[]
[]
[]
[]
[]
[]
[]
[]
[]
[]
[]
[]
[]
[]
[]
[]
[]
[]
[]
[]
[]
[]
[]
[]
[]
[]
[]
[]
[]
[]
[]
[]
[]
[]
[]
[]
[]
[]
[]
[]
[]
[]
[]
[]
[]
[]
[]
[]
[]
[]
[]
[]
[]
[]
[]
[]
[]
[]
[]
[]
[]
[]
[]
[]
[]
[]
[]
[]
[]
[]
[]
[]
[]
[]
[]
[]
[]
[]
[]
[]
[]
[]
[]
[]
[]
[]
[]
[]
[]
[]
[]
[]
[]
[]
[]
[]
[]
[]
[]
[]
[]
[]
[]
[]
[]
[]
[]
[]
[]
[]
[]
[]
[]
[]
[]
[]
[]
[]
[]
[]
[]
[]
[]
[]
[]
[]
[]
[]
[]
[]
[]
[]
[]
[]
[]
[]
[]
[]
[]
[]
[]
[]
[]
[]
[]
[]
[]
[]
[]
[]
[]
[]
[]
[]
[]
[]
[]
[]
[]
[]
[]
[]
[]
[]
[]
[]
[]
[]
[]
[]
[]
[]
[]
[]
[]
[]
[]
[]
[]
[]
[]
[]
[]
[]
[]
[]
[]
[]
[]
[]
[]
[]
[]
[]
[]
[]
[]
[]
[]
[]
[]
[]
[]
[]
[]
[]
[]
[]
[]
[]
[]
[]
[]
[]
[]
[]
[]
[]
[]
[]
[]
[]
[]
[]
[]
[]
[]
[]
[]
[]
[]
[]
[]
[]
[]
[]
[]
[]
[]
[]
[]
[]
[]
[]
[]
[]
[]
[]
[]
[]
[]
[]
[]
[]
[]
[]
[]
[]
[]
[]
[]
[]
[]
[]
[]
[]
[]
[]
[]
[]
[]
[]
[]
[]
[]
[]
[]
[]
[]
[]
[]
[]
[]
[]
[]
[]
[]
[]
[]
[]
[]
[]
[]
[]
[]
[]
[]
[]
[]
[]
[]
[]
[]
[]
[]
[]
[]
[]
[]
[]
[]
[]
[]
[]
[]
[]
[]
[]
[]
[]
[]
[]
[]
[]
[]
[]
[]
[]
[]
[]
[]
[]
[]
[]
[]
[]
[]
[]
[]
[]
[]
[]
[]
[]
[]
[]
[]
[]
[]
[]
[]
[]
[]
[]
[]
[]
[]
[]
[]
[]
[]
[]
[]
[]
[]
[]
[]
[]
[]
[]
[]
[]
[]
[]
[]
[]
[]
[]
[]
[]
[]
[]
[]
[]
[]
[]
[]
[]
[]
[]
[]
[]
[]
[]
[]
[]
[]
[]
[]
[]
[]
[]
[]
[]
[]
[]
[]
[]
[]
[]
[]
[]
[]
[]
[]
[]
[]
[]
[]
[]
[]
[]
[]
[]
[]
[]
[]
[]
[]
[]
[]
[]
[]
[]
[]
[]
[]
[]
[]
[]
[]
[]
[]
[]
[]
[]
[]
[]
[]
[]
[]
[]
[]
[]
[]
[]
[]
[]
[]
[]
[]
[]
[]
[]
[]
[]
[]
[]
[]
[]
[]
[]
[]
[]
[]
[]
[]
[]
[]
[]
[]
[]
[]
[]
[]
[]
[]
[]
[]
[]
[]
[]
[]
[]
[]
[]
[]
[]
[]
[]
[]
[]
[]
[]
[]
[]
[]
[]
[]
[]
[]
[]
[]
[]
[]
[]
[]
[]
[]
[]
[]
[]
[]
[]
[]
[]
[]
[]
[]
[]
[]
[]
[]
[]
[]
[]
[]
[]
[]
[]
[]
[]
[]
[]
[]
[]
[]
[]
[]
[]
[]
[]
[]
[]
[]
[]
[]
[]
[]
[]
[]
[]
[]
[]
[]
[]
[]
[]
[]
[]
[]
[]
[]
[]
[]
[]
[]
[]
[]
[]
[]
[]
[]
[]
[]
[]
[]
[]
[]
[]
[]
[]
[]
[]
[]
[]
[]
[]
[]
[]
[]
[]
[]
[]
[]
[]
[]
[]
[]
[]
[]
[]
[]
[]
[]
[]
[]
[]
[]
[]
[]
[]
[]
[]
[]
[]
[]
[]
[]
[]
[]
[]
[]
[]
[]
[]
[]
[]
[]
[]
[]
[]
[]
[]
[]
[]
[]
[]
[]
[]
[]
[]
[]
[]
[]
[]
[]
[]
[]
[]
[]
[]
[]
[]
[]
[]
[]
[]
[]
[]
[]
[]
[]
[]
[]
[]
[]
[]
[]
[]
[]
[]
[]
[]
[]
[]
[]
[]
[]
[]
[]
[]
[]
[]
[]
[]
[]
[]
[]
[]
[]
[]
[]
[]
[]
[]
[]
[]
[]
[]
[]
[]
[]
[]
[]
[]
[]
[]
[]
[]
[]
[]
[]
[]
[]
[]
[]
[]
[]
[]
[]
[]
[]
[]
[]
[]
[]
[]
[]
[]
[]
[]
[]
[]
[]
[]
[]
[]
[]
[]
[]
[]
[]
[]
[]
[]
[]
[]
[]
[]
[]
[]
[]
[]
[]
[]
[]
[]
[]
[]
[]
[]
[]
[]
[]
[]
[]
[]
[]
[]
[]
[]
[]
[]
[]
[]
[]
[]
[]
[]
[]
[]
[]
[]
[]
[]
[]
[]
[]
[]
[]
[]
[]
[]
[]
[]
[]
[]
[]
[]
[]
[]
[]
[]
[]
[]
[]
[]
[]
[]
[]
[]
[]
[]
[]
[]
[]
[]
[]
[]
[]
[]
[]
[]
[]
[]
[]
[]
[]
[]
[]
[]
[]
[]
[]
[]
[]
[]
[]
[]
[]
[]
[]
[]
[]
[]
[]
[]
[]
[]
[]
[]
[]
[]
[]
[]
[]
[]
[]
[]
[]
[]
[]
[]
[]
[]
[]
[]
[]
[]
[]
[]
[]
[]
[]
[]
[]
[]
[]
[]
[]
[]
[]
[]
[]
[]
[]
[]
[]
[]
[]
[]
[]
[]
[]
[]
[]
[]
[]
[]
[]
[]
[]
[]
[]
[]
[]
[]
[]
[]
[]
[]
[]
[]
[]
[]
[]
[]
[]
[]
[]
[]
[]
[]
[]
[]
[]
[]
[]
[]
[]
[]
[]
[]
[]
[]
[]
[]
[]
[]
[]
[]
[]
[]
[]
[]
[]
[]
[]
[]
[]
[]
[]
[]
[]
[]
[]
[]
[]
[]
[]
[]
[]
[]
[]
[]
[]
[]
[]
[]
[]
[]
[]
[]
[]
[]
[]
[]
[]
[]
[]
[]
[]
[]
[]
[]
[]
[]
[]
[]
[]
[]
[]
[]
[]
[]
[]
[]
[]
[]
[]
[]
[]
[]
[]
[]
[]
[]
[]
[]
[]
[]
[]
[]
[]
[]
[]
[]
[]
[]
[]
[]
[]
[]
[]
[]
[]
[]
[]
[]
[]
[]
[]
[]
[]
[]
[]
[]
[]
[]
[]
[]
[]
[]
[]
[]
[]
[]
[]
[]
[]
[]
[]
[]
[]
[]
[]
[]
[]
[]
[]
[]
[]
[]
[]
[]
[]
[]
[]
[]
[]
[]
[]
[]
[]
[]
[]
[]
[]
[]
[]
[]
[]
[]
[]
[]
[]
[]
[]
[]
[]
[]
[]
[]
[]
[]
[]
[]
[]
[]
[]
[]
[]
[]
[]
[]
[]
[]
[]
[]
[]
[]
[]
[]
[]
[]
[]
[]
[]
[]
[]
[]
[]
[]
[]
[]
[]
[]
[]
[]
[]
[]
[]
[]
[]
[]
[]
[]
[]
[]
[]
[]
[]
[]
[]
[]
[]
[]
[]
[]
[]
[]
[]
[]
[]
[]
[]
[]
[]
[]
[]
[]
[]
[]
[]
[]
[]
[]
[]
[]
[]
[]
[]
[]
[]
[]
[]
[]
[]
[]
[]
[]
[]
[]
[]
[]
[]
[]
[]
[]
[]
[]
[]
[]
[]
[]
[]
[]
[]
[]
[]
[]
[]
[]
[]
[]
[]
[]
[]
[]
[]
[]
[]
[]
[]
[]
[]
[]
[]
[]
[]
[]
[]
[]
[]
[]
[]
[]
[]
[]
[]
[]
[]
[]
[]
[]
[]
[]
[]
[]
[]
[]
[]
[]
[]
[]
[]
[]
[]
[]
[]
[]
[]
[]
[]
[]
[]
[]
[]
[]
[]
[]
[]
[]
[]
[]
[]
[]
[]
[]
[]
[]
[]
[]
[]
[]
[]
[]
[]
[]
[]
[]
[]
[]
[]
[]
[]
[]
[]
[]
[]
[]
[]
[]
[]
[]
[]
[]
[]
[]
[]
[]
[]
[]
[]
[]
[]
[]
[]
[]
[]
[]
[]
[]
[]
[]
[]
[]
[]
[]
[]
[]
[]
[]
[]
[]
[]
[]
[]
[]
[]
[]
[]
[]
[]
[]
[]
[]
[]
[]
[]
[]
[]
[]
[]
[]
[]
[]
[]
[]
[]
[]
[]
[]
[]
[]
[]
[]
[]
[]
[]
[]
[]
[]
[]
[]
[]
[]
[]
[]
[]
[]
[]
[]
[]
[]
[]
[]
[]
[]
[]
[]
[]
[]
[]
[]
[]
[]
[]
[]
[]
[]
[]
[]
[]
[]
[]
[]
[]
[]
[]
[]
[]
[]
[]
[]
[]
[]
[]
[]
[]
[]
[]
[]
[]
[]
[]
[]
[]
[]
[]
[]
[]
[]
[]
[]
[]
[]
[]
[]
[]
[]
[]
[]
[]
[]
[]
[]
[]
[]
[]
[]
[]
[]
[]
[]
[]
[]
[]
[]
[]
[]
[]
[]
[]
[]
[]
[]
[]
[]
[]
[]
[]
[]
[]
[]
[]
[]
[]
[]
[]
[]
[]
[]
[]
[]
[]
[]
[]
[]
[]
[]
[]
[]
[]
[]
[]
[]
[]
[]
[]
[]
[]
[]
[]
[]
[]
[]
[]
[]
[]
[]
[]
[]
[]
[]
[]
[]
[]
[]
[]
[]
[]
[]
[]
[]
[]
[]
[]
[]
[]
[]
[]
[]
[]
[]
[]
[]
[]
[]
[]
[]
[]
[]
[]
[]
[]
[]
[]
[]
[]
[]
[]
[]
[]
[]
[]
[]
[]
[]
[]
[]
[]
[]
[]
[]
[]
[]
[]
[]
[]
[]
[]
[]
[]
[]
[]
[]
[]
[]
[]
[]
[]
[]
[]
[]
[]
[]
[]
[]
[]
[]
[]
[]
[]
[]
[]
[]
[]
[]
[]
[]
[]
[]
[]
[]
[]
[]
[]
[]
[]
[]
[]
[]
[]
[]
[]
[]
[]
[]
[]
[]
[]
[]
[]
[]
[]
[]
[]
[]
[]
[]
[]
[]
[]
[]
[]
[]
[]
[]
[]
[]
[]
[]
[]
[]
[]
[]
[]
[]
[]
[]
[]
[]
[]
[]
[]
[]
[]
[]
[]
[]
[]
[]
[]
[]
[]
[]
[]
[]
[]
[]
[]
[]
[]
[]
[]
[]
[]
[]
[]
[]
[]
[]
[]
[]
[]
[]
[]
[]
[]
[]
[]
[]
[]
[]
[]
[]
[]
[]
[]
[]
[]
[]
[]
[]
[]
[]
[]
[]
[]
[]
[]
[]
[]
[]
[]
[]
[]
[]
[]
[]
[]
[]
[]
[]
[]
[]
[]
[]
[]
[]
[]
[]
[]
[]
[]
[]
[]
[]
[]
[]
[]
[]
[]
[]
[]
[]
[]
[]
[]
[]
[]
[]
[]
[]
[]
[]
[]
[]
[]
[]
[]
[]
[]
[]
[]
[]
[]
[]
[]
[]
[]
[]
[]
[]
[]
[]
[]
[]
[]
[]
[]
[]
[]
[]
[]
[]
[]
[]
[]
[]
[]
[]
[]
[]
[]
[]
[]
[]
[]
[]
[]
[]
[]
[]
[]
[]
[]
[]
[]
[]
[]
[]
[]
[]
[]
[]
[]
[]
[]
[]
[]
[]
[]
[]
[]
[]
[]
[]
[]
[]
[]
[]
[]
[]
[]
[]
[]
[]
[]
[]
[]
[]
[]
[]
[]
[]
[]
[]
[]
[]
[]
[]
[]
[]
[]
[]
[]
[]
[]
[]
[]
[]
[]
[]
[]
[]
[]
[]
[]
[]
[]
[]
[]
[]
[]
[]
[]
[]
[]
[]
[]
[]
[]
[]
[]
[]
[]
[]
[]
[]
[]
[]
[]
[]
[]
[]
[]
[]
[]
[]
[]
[]
[]
[]
[]
[]
[]
[]
[]
[]
[]
[]
[]
[]
[]
[]
[]
[]
[]
[]
[]
[]
[]
[]
[]
[]
[]
[]
[]
[]
[]
[]
[]
[]
[]
[]
[]
[]
[]
[]
[]
[]
[]
[]
[]
[]
[]
[]
[]
[]
[]
[]
[]
[]
[]
[]
[]
[]
[]
[]
[]
[]
[]
[]
[]
[]
[]
[]
[]
[]
[]
[]
[]
[]
[]
[]
[]
[]
[]
[]
[]
[]
[]
[]
[]
[]
[]
[]
[]
[]
[]
[]
[]
[]
[]
[]
[]
[]
[]
[]
[]
[]
[]
[]
[]
[]
[]
[]
[]
[]
[]
[]
[]
[]
[]
[]
[]
[]
[]
[]
[]
[]
[]
[]
[]
[]
[]
[]
[]
[]
[]
[]
[]
[]
[]
[]
[]
[]
[]
[]
[]
[]
[]
[]
[]
[]
[]
[]
[]
[]
[]
[]
[]
[]
[]
[]
[]
[]
[]
[]
[]
[]
[]
[]
[]
[]
[]
[]
[]
[]
[]
[]
[]
[]
[]
[]
[]
[]
[]
[]
[]
[]
[]
[]
[]
[]
[]
[]
[]
[]
[]
[]
[]
[]
[]
[]
[]
[]
[]
[]
[]
[]
[]
[]
[]
[]
[]
[]
[]
[]
[]
[]
[]
[]
[]
[]
[]
[]
[]
[]
[]
[]
[]
[]
[]
[]
[]
[]
[]
[]
[]
[]
[]
[]
[]
[]
[]
[]
[]
[]
[]
[]
[]
[]
[]
[]
[]
[]
[]
[]
[]
[]
[]
[]
[]
[]
[]
[]
[]
[]
[]
[]
[]
[]
[]
[]
[]
[]
[]
[]
[]
[]
[]
[]
[]
[]
[]
[]
[]
[]
[]
[]
[]
[]
[]
[]
[]
[]
[]
[]
[]
[]
[]
[]
[]
[]
[]
[]
[]
[]
[]
[]
[]
[]
[]
[]
[]
[]
[]
[]
[]
[]
[]
[]
[]
[]
[]
[]
[]
[]
[]
[]
[]
[]
[]
[]
[]
[]
[]
[]
[]
[]
[]
[]
[]
[]
[]
[]
[]
[]
[]
[]
[]
[]
[]
[]
[]
[]
[]
[]
[]
[]
[]
[]
[]
[]
[]
[]
[]
[]
[]
[]
[]
[]
[]
[]
[]
[]
[]
[]
[]
[]
[]
[]
[]
[]
[]
[]
[]
[]
[]
[]
[]
[]
[]
[]
[]
[]
[]
[]
[]
[]
[]
[]
[]
[]
[]
[]
[]
[]
[]
[]
[]
[]
[]
[]
[]
[]
[]
[]
[]
[]
[]
[]
[]
[]
[]
[]
[]
[]
[]
[]
[]
[]
[]
[]
[]
[]
[]
[]
[]
[]
[]
[]
[]
[]
[]
[]
[]
[]
[]
[]
[]
[]
[]
[]
[]
[]
[]
[]
[]
[]
[]
[]
[]
[]
[]
[]
[]
[]
[]
[]
[]
[]
[]
[]
[]
[]
[]
[]
[]
[]
[]
[]
[]
[]
[]
[]
[]
[]
[]
[]
[]
[]
[]
[]
[]
[]
[]
[]
[]
[]
[]
[]
[]
[]
[]
[]
[]
[]
[]
[]
[]
[]
[]
[]
[]
[]
[]
[]
[]
[]
[]
[]
[]
[]
[]
[]
[]
[]
[]
[]
[]
[]
[]
[]
[]
[]
[]
[]
[]
[]
[]
[]
[]
[]
[]
[]
[]
[]
[]
[]
[]
[]
[]
[]
[]
[]
[]
[]
[]
[]
[]
[]
[]
[]
[]
[]
[]
[]
[]
[]
[]
[]
[]
[]
[]
[]
[]
[]
[]
[]
[]
[]
[]
[]
[]
[]
[]
[]
[]
[]
[]
[]
[]
[]
[]
[]
[]
[]
[]
[]
[]
[]
[]
[]
[]
[]
[]
[]
[]
[]
[]
[]
[]
[]
[]
[]
[]
[]
[]
[]
[]
[]
[]
[]
[]
[]
[]
[]
[]
[]
[]
[]
[]
[]
[]
[]
[]
[]
[]
[]
[]
[]
[]
[]
[]
[]
[]
[]
[]
[]
[]
[]
[]
[]
[]
[]
[]
[]
[]
[]
[]
[]
[]
[]
[]
[]
[]
[]
[]
[]
[]
[]
[]
[]
[]
[]
[]
[]
[]
[]
[]
[]
[]
[]
[]
[]
[]
[]
[]
[]
[]
[]
[]
[]
[]
[]
[]
[]
[]
[]
[]
[]
[]
[]
[]
[]
[]
[]
[]
[]
[]
[]
[]
[]
[]
[]
[]
[]
[]
[]
[]
[]
[]
[]
[]
[]
[]
[]
[]
[]
[]
[]
[]
[]
[]
[]
[]
[]
[]
[]
[]
[]
[]
[]
[]
[]
[]
[]
[]
[]
[]
[]
[]
[]
[]
[]
[]
[]
[]
[]
[]
[]
[]
[]
[]
[]
[]
[]
[]
[]
[]
[]
[]
[]
[]
[]
[]
[]
[]
[]
[]
[]
[]
[]
[]
[]
[]
[]
[]
[]
[]
[]
[]
[]
[]
[]
[]
[]
[]
[]
[]
[]
[]
[]
[]
[]
[]
[]
[]
[]
[]
[]
[]
[]
[]
[]
[]
[]
[]
[]
[]
[]
[]
[]
[]
[]
[]
[]
[]
[]
[]
[]
[]
[]
[]
[]
[]
[]
[]
[]
[]
[]
[]
[]
[]
[]
[]
[]
[]
[]
[]
[]
[]
[]
[]
[]
[]
[]
[]
[]
[]
[]
[]
[]
[]
[]
[]
[]
[]
[]
[]
[]
[]
[]
[]
[]
[]
[]
[]
[]
[]
[]
[]
[]
[]
[]
[]
[]
[]
[]
[]
[]
[]
[]
[]
[]
[]
[]
[]
[]
[]
[]
[]
[]
[]
[]
[]
[]
[]
[]
[]
[]
[]
[]
[]
[]
[]
[]
[]
[]
[]
[]
[]
[]
[]
[]
[]
[]
[]
[]
[]
[]
[]
[]
[]
[]
[]
[]
[]
[]
[]
[]
[]
[]
[]
[]
[]
[]
[]
[]
[]
[]
[]
[]
[]
[]
[]
[]
[]
[]
[]
[]
[]
[]
[]
[]
[]
[]
[]
[]
[]
[]
[]
[]
[]
[]
[]
[]
[]
[]
[]
[]
[]
[]
[]
[]
[]
[]
[]
[]
[]
[]
[]
[]
[]
[]
[]
[]
[]
[]
[]
[]
[]
[]
[]
[]
[]
[]
[]
[]
[]
[]
[]
[]
[]
[]
[]
[]
[]
[]
[]
[]
[]
[]
[]
[]
[]
[]
[]
[]
[]
[]
[]
[]
[]
[]
[]
[]
[]
[]
[]
[]
[]
[]
[]
[]
[]
[]
[]
[]
[]
[]
[]
[]
[]
[]
[]
[]
[]
[]
[]
[]
[]
[]
[]
[]
[]
[]
[]
[]
[]
[]
[]
[]
[]
[]
[]
[]
[]
[]
[]
[]
[]
[]
[]
[]
[]
[]
[]
[]
[]
[]
[]
[]
[]
[]
[]
[]
[]
[]
[]
[]
[]
[]
[]
[]
[]
[]
[]
[]
[]
[]
[]
[]
[]
[]
[]
[]
[]
[]
[]
[]
[]
[]
[]
[]
[]
[]
[]
[]
[]
[]
[]
[]
[]
[]
[]
[]
[]
[]
[]
[]
[]
[]
[]
[]
[]
[]
[]
[]
[]
[]
[]
[]
[]
[]
[]
[]
[]
[]
[]
[]
[]
[]
[]
[]
[]
[]
[]
[]
[]
[]
[]
[]
[]
[]
[]
[]
[]
[]
[]
[]
[]
[]
[]
[]
[]
[]
[]
[]
[]
[]
[]
[]
[]
[]
[]
[]
[]
[]
[]
[]
[]
[]
[]
[]
[]
[]
[]
[]
[]
[]
[]
[]
[]
[]
[]
[]
[]
[]
[]
[]
[]
[]
[]
[]
[]
[]
[]
[]
[]
[]
[]
[]
[]
[]
[]
[]
[]
[]
[]
[]
[]
[]
[]
[]
[]
[]
[]
[]
[]
[]
[]
[]
[]
[]
[]
[]
[]
[]
[]
[]
[]
[]
[]
[]
[]
[]
[]
[]
[]
[]
[]
[]
[]
[]
[]
[]
[]
[]
[]
[]
[]
[]
[]
[]
[]
[]
[]
[]
[]
[]
[]
[]
[]
[]
[]
[]
[]
[]
[]
[]
[]
[]
[]
[]
[]
[]
[]
[]
[]
[]
[]
[]
[]
[]
[]
[]
[]
[]
[]
[]
[]
[]
[]
[]
[]
[]
[]
[]
[]
[]
[]
[]
[]
[]
[]
[]
[]
[]
[]
[]
[]
[]
[]
[]
[]
[]
[]
[]
[]
[]
[]
[]
[]
[]
[]
[]
[]
[]
[]
[]
[]
[]
[]
[]
[]
[]
[]
[]
[]
[]
[]
[]
[]
[]
[]
[]
[]
[]
[]
[]
[]
[]
[]
[]
[]
[]
[]
[]
[]
[]
[]
[]
[]
[]
[]
[]
[]
[]
[]
[]
[]
[]
[]
[]
[]
[]
[]
[]
[]
[]
[]
[]
[]
[]
[]
[]
[]
[]
[]
[]
[]
[]
[]
[]
[]
[]
[]
[]
[]
[]
[]
[]
[]
[]
[]
[]
[]
[]
[]
[]
[]
[]
[]
[]
[]
[]
[]
[]
[]
[]
[]
[]
[]
[]
[]
[]
[]
[]
[]
[]
[]
[]
[]
[]
[]
[]
[]
[]
[]
[]
[]
[]
[]
[]
[]
[]
[]
[]
[]
[]
[]
[]
[]
[]
[]
[]
[]
[]
[]
[]
[]
[]
[]
[]
[]
[]
[]
[]
[]
[]
[]
[]
[]
[]
[]
[]
[]
[]
[]
[]
[]
[]
[]
[]
[]
[]
[]
[]
[]
[]
[]
[]
[]
[]
[]
[]
[]
[]
[]
[]
[]
[]
[]
[]
[]
[]
[]
[]
[]
[]
[]
[]
[]
[]
[]
[]
[]
[]
[]
[]
[]
[]
[]
[]
[]
[]
[]
[]
[]
[]
[]
[]
[]
[]
[]
[]
[]
[]
[]
[]
[]
[]
[]
[]
[]
[]
[]
[]
[]
[]
[]
[]
[]
[]
[]
[]
[]
[]
[]
[]
[]
[]
[]
[]
[]
[]
[]
[]
[]
[]
[]
[]
[]
[]
[]
[]
[]
[]
[]
[]
[]
[]
[]
[]
[]
[]
[]
[]
[]
[]
[]
[]
[]
[]
[]
[]
[]
[]
[]
[]
[]
[]
[]
[]
[]
[]
[]
[]
[]
[]
[]
[]
[]
[]
[]
[]
[]
[]
[]
[]
[]
[]
[]
[]
[]
[]
[]
[]
[]
[]
[]
[]
[]
[]
[]
[]
[]
[]
[]
[]
[]
[]
[]
[]
[]
[]
[]
[]
[]
[]
[]
[]
[]
[]
[]
[]
[]
[]
[]
[]
[]
[]
[]
[]
[]
[]
[]
[]
[]
[]
[]
[]
[]
[]
[]
[]
[]
[]
[]
[]
[]
[]
[]
[]
[]
[]
[]
[]
[]
[]
[]
[]
[]
[]
[]
[]
[]
[]
[]
[]
[]
[]
[]
[]
[]
[]
[]
[]
[]
[]
[]
[]
[]
[]
[]
[]
[]
[]
[]
[]
[]
[]
[]
[]
[]
[]
[]
[]
[]
[]
[]
[]
[]
[]
[]
[]
[]
[]
[]
[]
[]
[]
[]
[]
[]
[]
[]
[]
[]
[]
[]
[]
[]
[]
[]
[]
[]
[]
[]
[]
[]
[]
[]
[]
[]
[]
[]
[]
[]
[]
[]
[]
[]
[]
[]
[]
[]
[]
[]
[]
[]
[]
[]
[]
[]
[]
[]
[]
[]
[]
[]
[]
[]
[]
[]
[]
[]
[]
[]
[]
[]
[]
[]
[]
[]
[]
[]
[]
[]
[]
[]
[]
[]
[]
[]
[]
[]
[]
[]
[]
[]
[]
[]
[]
[]
[]
[]
[]
[]
[]
[]
[]
[]
[]
[]
[]
[]
[]
[]
[]
[]
[]
[]
[]
[]
[]
[]
[]
[]
[]
[]
[]
[]
[]
[]
[]
[]
[]
[]
[]
[]
[]
[]
[]
[]
[]
[]
[]
[]
[]
[]
[]
[]
[]
[]
[]
[]
[]
[]
[]
[]
[]
[]
[]
[]
[]
[]
[]
[]
[]
[]
[]
[]
[]
[]
[]
[]
[]
[]
[]
[]
[]
[]
[]
[]
[]
[]
[]
[]
[]
[]
[]
[]
[]
[]
[]
[]
[]
[]
[]
[]
[]
[]
[]
[]
[]
[]
[]
[]
[]
[]
[]
[]
[]
[]
[]
[]
[]
[]
[]
[]
[]
[]
[]
[]
[]
[]
[]
[]
[]
[]
[]
[]
[]
[]
[]
[]
[]
[]
[]
[]
[]
[]
[]
[]
[]
[]
[]
[]
[]
[]
[]
[]
[]
[]
[]
[]
[]
[]
[]
[]
[]
[]
[]
[]
[]
[]
[]
[]
[]
[]
[]
[]
[]
[]
[]
[]
[]
[]
[]
[]
[]
[]
[]
[]
[]
[]
[]
[]
[]
[]
[]
[]
[]
[]
[]
[]
[]
[]
[]
[]
[]
[]
[]
[]
[]
[]
[]
[]
[]
[]
[]
[]
[]
[]
[]
[]
[]
[]
[]
[]
[]
[]
[]
[]
[]
[]
[]
[]
[]
[]
[]
[]
[]
[]
[]
[]
[]
[]
[]
[]
[]
[]
[]
[]
[]
[]
[]
[]
[]
[]
[]
[]
[]
[]
[]
[]
[]
[]
[]
[]
[]
[]
[]
[]
[]
[]
[]
[]
[]
[]
[]
[]
[]
[]
[]
[]
[]
[]
[]
[]
[]
[]
[]
[]
[]
[]
[]
[]
[]
[]
[]
[]
[]
[]
[]
[]
[]
[]
[]
[]
[]
[]
[]
[]
[]
[]
[]
[]
[]
[]
[]
[]
[]
[]
[]
[]
[]
[]
[]
[]
[]
[]
[]
[]
[]
[]
[]
[]
[]
[]
[]
[]
[]
[]
[]
[]
[]
[]
[]
[]
[]
[]
[]
[]
[]
[]
[]
[]
[]
[]
[]
[]
[]
[]
[]
[]
[]
[]
[]
[]
[]
[]
[]
[]
[]
[]
[]
[]
[]
[]
[]
[]
[]
[]
[]
[]
[]
[]
[]
[]
[]
[]
[]
[]
[]
[]
[]
[]
[]
[]
[]
[]
[]
[]
[]
[]
[]
[]
[]
[]
[]
[]
[]
[]
[]
[]
[]
[]
[]
[]
[]
[]
[]
[]
[]
[]
[]
[]
[]
[]
[]
[]
[]
[]
[]
[]
[]
[]
[]
[]
[]
[]
[]
[]
[]
[]
[]
[]
[]
[]
[]
[]
[]
[]
[]
[]
[]
[]
[]
[]
[]
[]
[]
[]
[]
[]
[]
[]
[]
[]
[]
[]
[]
[]
[]
[]
[]
[]
[]
[]
[]
[]
[]
[]
[]
[]
[]
[]
[]
[]
[]
[]
[]
[]
[]
[]
[]
[]
[]
[]
[]
[]
[]
[]
[]
[]
[]
[]
[]
[]
[]
[]
[]
[]
[]
[]
[]
[]
[]
[]
[]
[]
[]
[]
[]
[]
[]
[]
[]
[]
[]
[]
[]
[]
[]
[]
[]
[]
[]
[]
[]
[]
[]
[]
[]
[]
[]
[]
[]
[]
[]
[]
[]
[]
[]
[]
[]
[]
[]
[]
[]
[]
[]
[]
[]
[]
[]
[]
[]
[]
[]
[]
[]
[]
[]
[]
[]
[]
[]
[]
[]
[]
[]
[]
[]
[]
[]
[]
[]
[]
[]
[]
[]
[]
[]
[]
[]
[]
[]
[]
[]
[]
[]
[]
[]
[]
[]
[]
[]
[]
[]
[]
[]
[]
[]
[]
[]
[]
[]
[]
[]
[]
[]
[]
[]
[]
[]
[]
[]
[]
[]
[]
[]
[]
[]
[]
[]
[]
[]
[]
[]
[]
[]
[]
[]
[]
[]
[]
[]
[]
[]
[]
[]
[]
[]
[]
[]
[]
[]
[]
[]
[]
[]
[]
[]
[]
[]
[]
[]
[]
[]
[]
[]
[]
[]
[]
[]
[]
[]
[]
[]
[]
[]
[]
[]
[]
[]
[]
[]
[]
[]
[]
[]
[]
[]
[]
[]
[]
[]
[]
[]
[]
[]
[]
[]
[]
[]
[]
[]
[]
[]
[]
[]
[]
[]
[]
[]
[]
[]
[]
[]
[]
[]
[]
[]
[]
[]
[]
[]
[]
[]
[]
[]
[]
[]
[]
[]
[]
[]
[]
[]
[]
[]
[]
[]
[]
[]
[]
[]
[]
[]
[]
[]
[]
[]
[]
[]
[]
[]
[]
[]
[]
[]
[]
[]
[]
[]
[]
[]
[]
[]
[]
[]
[]
[]
[]
[]
[]
[]
[]
[]
[]
[]
[]
[]
[]
[]
[]
[]
[]
[]
[]
[]
[]
[]
[]
[]
[]
[]
[]
[]
[]
[]
[]
[]
[]
[]
[]
[]
[]
[]
[]
[]
[]
[]
[]
[]
[]
[]
[]
[]
[]
[]
[]
[]
[]
[]
[]
[]
[]
[]
[]
[]
[]
[]
[]
[]
[]
[]
[]
[]
[]
[]
[]
[]
[]
[]
[]
[]
[]
[]
[]
[]
[]
[]
[]
[]
[]
[]
[]
[]
[]
[]
[]
[]
[]
[]
[]
[]
[]
[]
[]
[]
[]
[]
[]
[]
[]
[]
[]
[]
[]
[]
[]
[]
[]
[]
[]
[null,null,null,null,null,"+"]

{"sheet":"Подписанты2","index":8,"n_rows":2,"n_cols":6,"rows_kept":2,"cut":false,"hidden":true,"merged":[]}
["ФИО 1","Должность 1","ФИО 2","Должность 2","E-mail","Телефон"]
["О. О. Бады","Министр дорожного-транспортного комплекса Республики Тыва","К. К. Суктер-оол","Ведущий специалист","mindortrans_rt07@mail.ru","8 (39422) 2-63-05"]

{"sheet":"Архив отчетов","index":9,"n_rows":2,"n_cols":1,"rows_kept":2,"cut":false,"hidden":false,"merged":[]}
["Список сохраненных отчетов"]
["18_Тыва_Отчет_3кв_2014_1510.xlsx"]

{"sheet":"Отчет_последний","index":10,"n_rows":33,"n_cols":21,"rows_kept":33,"cut":false,"hidden":true,"merged":[]}
[1,1,"Оснащение техническими комплексами подразделений, осуществляющих  контрольные и надзорные функции в области БДД стационарными и мобильными комплексами видеофиксации нарушений Правил дорожного движения, включая доставку,  проведение коммуникаций (сетевая магистраль, электроснабжение), общестроительные работы (монтаж и установку комплексов видеофиксации) и техническое содержание объектов",2,1,"ВБИ",2000,2000,1650,698.3,698.3,7,7,0,0,698.3,0,0,29,"штук","Техническое обслуживание проводится по взаимодействию с диспетчерской службы УВД МВД г. Кызыла и ГИБДД МВД по РТ. По поступившим телефонограммам о случаях неисправности незамедлительно принимаются меры по устранению неиправностей. Оплата будет произвидится в декабре текущего года."]
[2,1,"Финансирование работ  по обработке данных камер видеофиксации и подготовке постановлений по делам об административных правонарушениях",2,1,"РБ",2942,2942,2942,2942,2942,1,1,2113.5349999999999,570.5,0,2113.5349999999999,570.5,2113.5349999999999,"рублей","Работникам отдела по обработке данных камер видеофиксациии и подготовке постановлений по АПН произведена оплата заработной платы, перечислены налоги и взносы во внебюджетные фонды, а также на канцелярские товары."]
[3,1,"Финансирование почтовых расходов по рассылке постановлений по делам  об административных правонарушениях",2,1,"РБ",2198,2198,2198,1198,1198,3,3,687.49199999999996,489.5,0,687.49199999999996,489.5,28717,"штук","За отчетный период  с 01 января по 31 сентября 2014 года отделом ЦАФАП с применением специальных технических средств фото-видеофиксации, работающими в автоматическом режиме было внесено и направлено 34 тыс. 301 административных правонарушения. По выявленным АПН наложено штрафов на собственников (владельцев) транспортных средств на сумму 20 млн. 484 900 тыс. руб."]
[4,1,"Разработка проекта  «Автоматизированная система видеофиксации нарушений правил дорожного движения на территории Респуб-лики Тыва»",0,null,"РБ",900,900,900,0,0,0,0,0,0,0,0,0,0]
[5,1,"Приобретение и монтаж детского автогородка в общеобразовательных учреждениях республики",3,2,"РБ",40,40,40,0,0,0,0,0,0,0,0,0,0,"штук"]
[6,1,"Введение паспортов дорожной безопасности образовательных учреждений в дошкольных и образовательных учреждениях республики в 2014 – 2015 годах для отображения информа-ции об образовательном учреждении с точки зрения обеспечения безопасности детей на этапах их перемещения «дом - образователь-ное учреждение (ОУ) - дом», а также для ис-пользования преподавательским составом и сотрудниками Госавтоинспекции в работе по обучению школьников навыкам транспортной культуры и подготовки мероприятий по предупреждению дорожно-транспортного травматизма",3,2,"РБ",10,10,10,0,0,0,0,0,0,0,0,0,0,"штук"]
[7,1,"Введение паспортов дорожной безопасности образовательных учреждений в дошкольных и образовательных учреждениях республики в 2014 – 2015 годах для отображения информа-ции об образовательном учреждении с точки зрения обеспечения безопасности детей на этапах их перемещения «дом - образователь-ное учреждение (ОУ) - дом», а также для ис-пользования преподавательским составом и сотрудниками Госавтоинспекции в работе по обучению школьников навыкам транспортной культуры и подготовки мероприятий по предупреждению дорожно-транспортного травматизма",3,2,"ВБИ",10,10,10,0,0,0,0,0,0,0,0,0,0,"штук"]
[8,1,"Создание видео-телевизионной и информаци-онно-пропагандисткой продукции, организа-ция наружной и социальной рекламы (банне-ры, перетяжки), а также размещение материа-лов в средствах массовой информации, на-глядной агитации по безопасности дорожного движения в общественных местах (общеобра-зовательных учреждениях, общественном транспорте, кинотеатрах, рекламных экранах, остановках общественного транспорта и т.д.)",2,1,"РБ",500,500,500,500,500,2,2,309.91899999999998,159.91800000000001,null,309.91899999999998,159.91800000000001,12,"выходов","На телеканале «Новый век» в передаче  «Авто-ликбез» осуществлено 12 выходов с освещением вопросов о повышении безопасности дорожного движения."]
[9,1,"Создание видео-телевизионной и информаци-онно-пропагандисткой продукции, организа-ция наружной и социальной рекламы (банне-ры, перетяжки), а также размещение материа-лов в средствах массовой информации, на-глядной агитации по безопасности дорожного движения в общественных местах (общеобра-зовательных учреждениях, общественном транспорте, кинотеатрах, рекламных экранах, остановках общественного транспорта и т.д.)",2,1,"ВБИ",40,40,40,0,0,0,0,0,0,0,0,0,0,"выходов"]
[10,1,"Организация и проведение республиканских отборочных мероприятий отрядов юных ин-спекторов движения (ЮИД) и участие во все-российских детских массовых мероприятиях: слетах юных инспекторов, всероссийском конкурсе-фестивале \"Безопасное колесо\" ор-ганизуемых Департаментом обеспечения безопасности дорожного движения МВД РФ с оплатой проезда, питания, проживания участ-ников и сопровождающих лиц",3,2,"РБ",150,150,150,122.6,122.6,1,1,122.6,0,0,122.6,0,5,"штук","Произведена оплата проезда 4 участникам всероссийского конкурса юных инспекторов движения \"Безопасное колесо\" и одного сопровождающего лица в  г. Москве с 22 по 29 июня 2014 года"]
[11,1,"Проведение серий широкомасштабных информационно - пропагандистских социаль-ных кампаний и акций, направленных на фор-мирование устойчивых навыков законопос-лушного поведения на дорогах, а также фор-мирование навыков безопасного поведения на дорогах у детей и подростков («Внимание - дети!», «Пристегнись!», «Пешеход на пере-ход», ",2,1,"РБ",221,221,221,201.55,201.55,4,4,201.55,201.55,0,201.55,201.55,5,"штук","В целях повышения эффективности деятельности по воспитанию законопослушных участников дорожного движения и предупреждению дорожно-транспортного травматизма среди детей и подростков на базе ГУПО УКК «Туваатотранс» проведены конкурсы: «Дорога Без Опасности», «Дороги и дети», «Пешеход на переход», «Знатоки правил дорожного движения» и «Перекресток» (с общим охватом 124 детей). "]
[12,1,"Проведение серий широкомасштабных информационно - пропагандистских социаль-ных кампаний и акций, направленных на фор-мирование устойчивых навыков законопос-лушного поведения на дорогах, а также фор-мирование навыков безопасного поведения на дорогах у детей и подростков («Внимание - дети!», «Пристегнись!», «Пешеход на пере-ход», ",2,1,"ВБИ",30,30,30,0,0,0,0,0,0,0,0,0,0,"штук"]
[13,1,"Для координации деятельности и системы непрерывного обучения детей и подростков культуре безопасного поведения на дорогах - создание  методического центра по профилак-тике детского дорожно-транспортного травматизма на базе ГОУ  ДОД РЦДОД РТ  в качестве одной из форм внеклассной работы;",3,2,"РБ",10,10,10,0,0,0,0,0,0,0,0,0,0,"курсов"]
[14,1,"Для координации деятельности и системы непрерывного обучения детей и подростков культуре безопасного поведения на дорогах - создание  методического центра по профилак-тике детского дорожно-транспортного травматизма на базе ГОУ  ДОД РЦДОД РТ  в качестве одной из форм внеклассной работы;",3,2,"ВБИ",10,10,10,0,0,0,0,0,0,0,0,0,0,"курсов"]
[15,1,"Разработка и изготовление пособий для педагогов по реализации образовательных программ по правилам дорожного движения",3,2,"ВБИ",40,40,40,0,0,0,0,0,0,0,0,0,0,"штук"]
[16,1,"Обустройство  опасных участков автомобильных дорог республиканского или межмуниципального и местного значения  дорожными ограждениями, в том числе разделяющие встречные направления движения, разметка",5,4,"ВБИ",10000,10000,10000,0,0,0,0,0,0,0,0,0,0,"км"]
[17,1,"Устройство линий электроосвещения (проектирование, строительство) на участках автомобильных дорог  федерального и регио-нального значения (автодорог М-54 и А-162) проходящих через муниципальные образова-ния)  ",5,4,"ВБИ",9000,10438.5,10438.5,10438.5,10438.5,1,1,10438.5,0,0,10438.5,0,1742,"м","Построена линия электроосвещения в пос. Шуурмак Тес-Хемского района на участке автодороги М-54 \"Енисей\" км 945 + 231 - км 946+973 с протяженностью 1742 м. Подключение линийй завершено в первом полугодии 2014 г."]
[18,1,"Реконструкция, строительство на участках улично-дорожной сети городов и населенных пунктов пешеходных ограждений, в том числе в зоне пешеходных переходов и вблизи образовательных учреждений",5,4,"ВБИ",2500,2500,2500,1438.2,1438.2,5,5,0,0,1438.2,0,0,440.43,"погонный метр","По данному мероприятию выполнены: установка пешеходных ограждений 440,43 п.м., эксплуатация 75 п.м.  Оплата будет произвидится в декабре текущего года."]
[19,1,"Создание  условий  для безопасного и комфортного движения пешеходов, обустройству пешеходных переходов на автомобильных дорогах федерального, регионального или межмуниципального значения (установка барьерных ограждений, светофорных объектов в населенных пунктах на светоизлучающих диодах, с современными управляющими контролерами, звуковыми сопровождающими устройствами, включая ремонт, выполнение работ по искусственному освещению улиц и мест концентрации ДТП с применением инженерных  и технических мер)",5,4,"ВБИ",16819,16819,16819,13840,13840,1,1,13840,13840,0,13840,13840,null,"штук","Обустройство  ул. Шахтерская пгт. Каа-Хем : освещение – 10953,487 тыс. руб.\n2 светофорых объекта  1275,722 тыс. руб. и 1153,099 тыс. рублей.\nразметка (1.14.1, 1.14.2), знаки (5.19.1, 5.19.2) – 457,686 тыс. рублей."]
[20,1,"Повышение квалификации специалистов ",2,1,"РБ",329.6,329.6,329.6,0,0,0,0,0,0,0,0,0,0,"человек","На софинансирование повышение квалификации специалистов в 2014 г. подпрограмме предусмотрено 329,6 тыс. рублей. В этом году ФГБОУ ВПО ТувГУ не получил грант по данной теме. "]
[21,1,"Повышение квалификации специалистов ",2,1,"ВБИ",329.6,329.6,329.6,0,0,0,0,0,0,0,0,0,0,"человек","На софинансирование повышение квалификации специалистов в 2014 г. подпрограмме предусмотрено 329,6 тыс. рублей. В этом году ФГБОУ ВПО ТувГУ не получил грант по данной теме. "]
[22,1,"Учебные манекены взрослого человека по обучению водителей, работников организаций и учреждений, учащихся общеобразователь-ных  школ, сотрудников экстренных служб, медицинских работников участвующих в лик-видации ДТП приемам оказания первой меди-цинской помощи лицам, пострадавшим в до-рожно-транспортных происшествиях – 3 ком-плекта (по 1 комплекту Медколледж, КГССМП, учебного центра «Школа медицины катастроф» ТЦМК РТ",0,null,"РБ",600,600,600,0,0,0,0,0,0,0,0,0,0,"штук"]
[23,2,"Содержание комплекса автоматизированной системы видеонаблюдения на улицах города Кызыла",2,5,"МБ",1100,1100,1100,698.3,698.3,7,7,698.3,0,698.3,0,0,29,"единица","Техническое обслуживание проводится по взаимодействию с диспетчерской службой УВД МВД г. Кызыла и ГИБДД МВД по РТ. По поступившим телефонограммам о случаях неисправности, незамедлительно принимаются меры по устранению неисправностей. Оплата будет произвидится в декабре текущего года."]
[24,2,"Создание видео-телевизионной и информационно-пропагандисткой продукции, организация наружной рекламы (баннеры, перетяжки), а также размещение материалов в средствах массовой информации, наглядной агитации по безопасности дорожного движения в общественных местах (общеобразовательных учреждениях, общественном транспорте, кинотеатрах, отсановках общественного транспорта и т.д.)",2,10,"МБ",40,40,40,0,0,0,0,0,0,0,0,0,0,0,"Согласно раздела 4 муниципальной целевой программы \"Повышение безопасности дорожного движения на территории городского округа \"Город Кызыл Республики Тыва\" на 2014-2016 годы\", исходя из возможностей местного бюджета мероприятие не проводилось"]
[25,2,"Введение паспортов дорожной безопасности образовательных учреждений в дошкольных и образовательных учреждениях республики в 2014-2015 годах для отображения информации об образовательном учреждении с точки зрения обеспечения безопасности детей на этапах их перемещения \"дом - образовательное учреждение (ОУ) - дом\", а также для использования преподовательским составом и сотрудниками Госавтоинспекции в работе по обучению школьников навыкам транспортной культуры и подготовки мероприятий по предупреждению дорожно-транспортного травматизма",3,11,"МБ",10,10,10,10,10,1,1,10,10,null,10,10,45,"штук","По состоянию на 1 сентября 2014 года 45 ОУ города Кызыла получили заключения на Паспорт дорожной безопасности ОУ."]
[26,2,"разработка и изготовление пособий для педагогов по реализации образовательных программ по правилам дорожного движения",3,1,"МБ",25,25,25,0,0,0,0,0,0,0,0,0,0,0,"Согласно раздела 4 муниципальной целевой программы \"Повышение безопасности дорожного движения на территории городского округа \"Город Кызыл Республики Тыва\" на 2014-2016 годы\", исходя из возможностей местного бюджета мероприятие не выполнялось"]
[27,2,"Изготовление и распространение световозвращающих приспособлений в среде учащихся младших классов образовательных учреждений (световозвращающие  подвески (брелок) для пешеходов)",3,10,null,25,25,25,0,0,0,0,0,0,0,0,null,0,0]
[28,2,"Строительство светофорных объектов",5,8,"ВБИ",2175.5,2175.5,2096.08,2096.08,2096.08,2,2,0,0,2096.08,0,0,2,"штук","Светофорные объекты установлены на следующих  перекрестках:  Рабочая - Титова, Межмикрорайонная - Калинина "]
[29,2,"реконструкция и содержание светофорных объектов",5,9,"ВБИ",3258.7,3258.7,3258.7,3081.2,3081.2,7,7,1233.5,113.3,1847.7,1233.5,113.3,43,"штук","Эксплуатация и содержание 43 светофорных объектов города Кызыла "]
[30,2,"Приобретение, утсановка и содержание дорожных знаков на территории города Кызыла",5,8,"ВБИ",4944.8999999999996,4944.8999999999996,4944.8999999999996,11737.7,1173.7,7,7,1173.7,1173.7,null,1173.7,1173.7,469,"штук","На территории города Кызыла установлены знаки дорожного движения количестве 200 шт., замена знаков дорожного движения в количестве 23 шт., эксплуатация знаков дорожного движения в количестве 246 шт."]
[31,2,"Монтаж и эксплуатация пешеходных ограждений ",5,7,"ВБИ",3500,3500,3500,1735.2,1735.2,7,7,1735.2,1735.2,null,1735.2,1735.2,515.4,"п.м","В городе Кызыл были установлены пешеходные ограждения 440,43 м.п. и эксплуатация пешеходных ограждений 75 м.п"]
[32,2,"Приобретение и установка искусственных дорожных неровностей",5,8,"ВБИ",665.8,665.8,665.8,0,0,0,0,0,0,null,0,0,0,0]
[33,2,"Нанесение дорожной разметки ",5,8,null,4410.8999999999996,4020.7,4020.7,4020.7,4020.7,7,7,4020.7,1236.7,null,4020.7,1236.7,13810.8,"кв.м","На территории города Кызыла выполнены работы по нанесению дорожной разметки на 13810,79 кв.м., в том числе ручное (пешеходные переходы) нанесение дорожной разметки - 7073,98 кв.м., машинное (осевая) - 6658,09 кв.м., нанесение дорожной разметки парковки \"Центральная\" - 78,72 кв.м."]

{"sheet":"Мер_форма","index":11,"n_rows":34,"n_cols":260,"rows_kept":34,"cut":false,"hidden":true,"merged":[]}
["№ пп.","","Мероприятие","Направление","Номер","ИстФин","План","БН","ЛБО","СКвсего","СКгод","ККвсего","ККгод","КРвсего","КРквартал","КРкредит","ОсвоеноВсего","ОсвоеноКвартал","Количество","ЕдИзм","Описание",null,null,null,null,null,null,null,null,null,null,null,null,null,null,null,null,null,null,null,null,null,null,null,null,null,null,null,null,null,null,null,null,null,null,null,null,null,null,null,null,null,null,null,null,null,null,null,null,null,null,null,null,null,null,null,null,null,null,null,null,null,null,null,null,null,null,null,null,null,null,null,null,null,null,null,null,null,null,null,null,null,null,null,null,null,null,null,null,null,null,null,null,null,null,null,null,null,null,null,null,null,null,null,null,null,null,null,null,null,null,null,null,null,null,null,null,null,null,null,null,null,null,null,null,null,null,null,null,null,null,null,null,null,null,null,null,null,null,null,null,null,null,null,null,null,null,null,null,null,null,null,null,null,null,null,null,null,null,null,null,null,null,null,null,null,null,null,null,null,null,null,null,null,null,null,null,null,null,null,null,null,null,null,null,null,null,null,null,null,null,null,null,null,null,null,null,null,null,null,null,null,null,null,null,null,null,null,null,null,null,null,null,null,null,null,null,null,null,null,null,null,null,null,null,null,null,null,null,null,null,null,null,null,null,null,null,null,"ЕдИзм","Описание"]
[1,1,"Оснащение техническими комплексами подразделений, осуществляющих  контрольные и надзорные функции в области БДД стационарными и мобильными комплексами видеофиксации нарушений Правил дорожного движения, включая доставку,  проведение коммуникаций (сетевая магистраль, электроснабжение), общестроительные работы (монтаж и установку комплексов видеофиксации) и техническое содержание объектов",2,1,"ВБИ",2000,1100,1100,698.3,698.3,10,10,546.79999999999995,0,151.5,546.79999999999995,0,29,"штук","Техническое обслуживание проводится по взаимодействию с диспетчерской службы УВД МВД г. Кызыла и ГИБДД МВД по РТ. По поступившим телефонограммам о случаях неисправности незамедлительно принимаются меры по устранению неиправностей. Оплата будет произвидится в декабре текущего года."]
[2,1,"Финансирование работ  по обработке данных камер видеофиксации и подготовке постановлений по делам об административных правонарушениях",2,1,"РБ",3027.6,3027.6,2970.348,3027.6,3027.6,1,1,2970.6,856.8,57252,2970.348,856.8,2970348,"рублей","Работникам отдела по обработке данных камер видеофиксациии и подготовке постановлений по АПН произведена оплата заработной платы, перечислены налоги и взносы во внебюджетные фонды, а также на канцелярские товары."]
[3,1,"Финансирование почтовых расходов по рассылке постановлений по делам  об административных правонарушениях",2,1,"РБ",3103.85,3103.85,3103.85,3103.85,3103.85,3,3,1830.9390000000001,1143.44856,1272.9110000000001,1830.9390000000001,1143.44856,43296,"штук","За отчетный период  с 01 января по 30 ноября 2014 года отделом ЦАФАП с применением специальных технических средств фото-видеофиксации, работающими в автоматическом режиме было внесено и направлено 43 тыс. 296 административных правонарушения. По выявленным АПН наложено штрафов на собственников (владельцев) транспортных средств на сумму 27 млн. 139 тыс. руб."]
[4,1,"Разработка проекта  «Автоматизированная система видеофиксации нарушений правил дорожного движения на территории Респуб-лики Тыва»",2,null,"РБ",900,900,900,0,0,0,0,0,0,0,0,0,0]
[5,1,"Приобретение и монтаж детского автогородка в общеобразовательных учреждениях республики",3,2,"РБ",40,40,40,0,0,0,0,0,0,0,0,0,0,"штук"]
[6,1,"Введение паспортов дорожной безопасности образовательных учреждений в дошкольных и образовательных учреждениях республики в 2014 – 2015 годах для отображения информа-ции об образовательном учреждении с точки зрения обеспечения безопасности детей на этапах их перемещения «дом - образователь-ное учреждение (ОУ) - дом», а также для ис-пользования преподавательским составом и сотрудниками Госавтоинспекции в работе по обучению школьников навыкам транспортной культуры и подготовки мероприятий по предупреждению дорожно-транспортного травматизма",3,2,"РБ",10,10,10,10,10,1,1,10,10,0,0,0,0,"штук"]
[7,1,"Введение паспортов дорожной безопасности образовательных учреждений в дошкольных и образовательных учреждениях республики в 2014 – 2015 годах для отображения информа-ции об образовательном учреждении с точки зрения обеспечения безопасности детей на этапах их перемещения «дом - образователь-ное учреждение (ОУ) - дом», а также для ис-пользования преподавательским составом и сотрудниками Госавтоинспекции в работе по обучению школьников навыкам транспортной культуры и подготовки мероприятий по предупреждению дорожно-транспортного травматизма",3,2,"ВБИ",10,10,10,10,10,1,1,0,0,10,0,0,1,"штук","Приобретен лазерный принтер для центра ГБОУ РТ \"РЦДОД\""]
[8,1,"Создание видео-телевизионной и информаци-онно-пропагандисткой продукции, организа-ция наружной и социальной рекламы (банне-ры, перетяжки), а также размещение материа-лов в средствах массовой информации, на-глядной агитации по безопасности дорожного движения в общественных местах (общеобра-зовательных учреждениях, общественном транспорте, кинотеатрах, рекламных экранах, остановках общественного транспорта и т.д.)",2,1,"РБ",500,500,500,500,500,2,2,334.21,0,165.79,334.21,0,51,"выходов","На телеканале «Новый век» в передаче  «Автоликбез» осуществлено 51 выходов (повторами) с освещением вопросов о повышении безопасности дорожного движения и заключен договор на аренду рекламных щитов и на изготовление баннеров \"Притормози\"."]
[9,1,"Создание видео-телевизионной и информаци-онно-пропагандисткой продукции, организа-ция наружной и социальной рекламы (банне-ры, перетяжки), а также размещение материа-лов в средствах массовой информации, на-глядной агитации по безопасности дорожного движения в общественных местах (общеобра-зовательных учреждениях, общественном транспорте, кинотеатрах, рекламных экранах, остановках общественного транспорта и т.д.)",2,1,"ВБИ",40,40,40,0,0,0,0,0,0,0,0,0,0,"выходов"]
[10,1,"Организация и проведение республиканских отборочных мероприятий отрядов юных ин-спекторов движения (ЮИД) и участие во все-российских детских массовых мероприятиях: слетах юных инспекторов, всероссийском конкурсе-фестивале \"Безопасное колесо\" ор-ганизуемых Департаментом обеспечения безопасности дорожного движения МВД РФ с оплатой проезда, питания, проживания участ-ников и сопровождающих лиц",3,2,"РБ",150,150,150,122.6,122.6,1,1,122.6,0,0,122.6,0,5,"штук","Произведена оплата проезда 4 участникам всероссийского конкурса юных инспекторов движения \"Безопасное колесо\" и одного сопровождающего лица в  г. Москве с 22 по 29 июня 2014 года"]
[11,1,"Проведение серий широкомасштабных информационно - пропагандистских социаль-ных кампаний и акций, направленных на фор-мирование устойчивых навыков законопос-лушного поведения на дорогах, а также фор-мирование навыков безопасного поведения на дорогах у детей и подростков («Внимание - дети!», «Пристегнись!», «Пешеход на пере-ход», ",2,1,"РБ",221,221,221,201.55,201.55,4,4,201.55,201.55,0,201.55,201.55,5,"штук","В целях повышения эффективности деятельности по воспитанию законопослушных участников дорожного движения и предупреждению дорожно-транспортного травматизма среди детей и подростков на базе ГУПО УКК «Туваатотранс» проведены конкурсы: «Дорога Без Опасности», «Дороги и дети», «Пешеход на переход», «Знатоки правил дорожного движения» и «Перекресток» (с общим охватом 124 детей). "]
[12,1,"Проведение серий широкомасштабных информационно - пропагандистских социаль-ных кампаний и акций, направленных на фор-мирование устойчивых навыков законопос-лушного поведения на дорогах, а также фор-мирование навыков безопасного поведения на дорогах у детей и подростков («Внимание - дети!», «Пристегнись!», «Пешеход на пере-ход», ",2,1,"ВБИ",30,30,30,0,0,0,0,0,0,0,0,0,0,"штук"]
[13,1,"Для координации деятельности и системы непрерывного обучения детей и подростков культуре безопасного поведения на дорогах - создание  методического центра по профилак-тике детского дорожно-транспортного травматизма на базе ГОУ  ДОД РЦДОД РТ  в качестве одной из форм внеклассной работы;",3,2,"ВБИ",10,10,10,0,0,0,0,0,0,10,0,0,1,"штук","Для центра ГБОУ РТ РЦДОД приобретен ноутбук."]
[14,1,"Разработка и изготовление пособий для педагогов по реализации образовательных программ по правилам дорожного движения",3,2,"ВБИ",40,40,40,0,0,0,0,0,0,0,0,0,0,"штук"]
[15,1,"Обустройство  опасных участков автомобильных дорог республиканского или межмуниципального и местного значения  дорожными ограждениями, в том числе разделяющие встречные направления движения, разметка",5,4,"ВБИ",10000,11293.729880000001,11293.729880000001,11293.729880000001,11293.729880000001,3,3,11293.729880000001,11293.729880000001,0,11293.729880000001,11293.729880000001,"14552,79","км","За 12 месяцев 2014 года выполнены работы по нанесению дорожной разметки, в том числе, на автодороге М-54 \"Енисей\" км 701+000- км 1043+000 на общую сумму 6946,360 тыс. руб.; город Кызыл на сумму 4296,14488 тыс. руб.; г. Ак- Довурак на сумму 51225 руб."]
[16,1,"Устройство линий электроосвещения (проектирование, строительство) на участках автомобильных дорог  федерального и регио-нального значения (автодорог М-54 и А-162) проходящих через муниципальные образова-ния)  ",5,4,"ВБИ",9000,10438.5,10438.5,10438.5,10438.5,1,1,10438.5,0,0,10438.5,0,1742,"м","Построена линия электроосвещения в пос. Шуурмак Тес-Хемского района на участке автодороги М-54 \"Енисей\" км 945 + 231 - км 946+973 с протяженностью 1742 м. Подключение линийй завершено в первом полугодии 2014 г."]
[17,1,"Реконструкция, строительство на участках улично-дорожной сети городов и населенных пунктов пешеходных ограждений, в том числе в зоне пешеходных переходов и вблизи образовательных учреждений",5,4,"ВБИ",2500,893,893,893,893,10,10,893,478.1,0,893,478.1,440.43,"погонный метр","По данному мероприятию выполнены: установка пешеходных ограждений 440,43 п.м., эксплуатация 643,6 п.м.  "]
[18,1,"Создание  условий  для безопасного и комфортного движения пешеходов, обустройству пешеходных переходов на автомобильных дорогах федерального, регионального или межмуниципального значения (установка барьерных ограждений, светофорных объектов в населенных пунктах на светоизлучающих диодах, с современными управляющими контролерами, звуковыми сопровождающими устройствами, включая ремонт, выполнение работ по искусственному освещению улиц и мест концентрации ДТП с применением инженерных  и технических мер)",5,4,"ВБИ",16819,16819,16819,13840,13840,1,1,13840,13840,0,13840,13840,null,"штук","Обустройство  ул. Шахтерская пгт. Каа-Хем : освещение – 10953,487 тыс. руб.\r\n2 светофорых объекта  1275,722 тыс. руб. и 1153,099 тыс. рублей.\r\nразметка (1.14.1, 1.14.2), знаки (5.19.1, 5.19.2) – 457,686 тыс. рублей."]
[19,1,"Повышение квалификации специалистов ",2,1,"РБ",329.6,329.6,329.6,0,0,0,0,0,0,0,0,0,0,"человек","На софинансирование повышение квалификации специалистов в 2014 г. подпрограмме предусмотрено 329,6 тыс. рублей. В этом году ФГБОУ ВПО ТувГУ не получил грант по данной теме. "]
[20,1,"Повышение квалификации специалистов ",2,1,"ВБИ",329.6,329.6,329.6,0,0,0,0,0,0,0,0,0,0,"человек","На софинансирование повышение квалификации специалистов в 2014 г. подпрограмме предусмотрено 329,6 тыс. рублей. В этом году ФГБОУ ВПО ТувГУ не получил грант по данной теме. "]
[21,1,"Учебные манекены взрослого человека по обучению водителей, работников организаций и учреждений, учащихся общеобразователь-ных  школ, сотрудников экстренных служб, медицинских работников участвующих в лик-видации ДТП приемам оказания первой меди-цинской помощи лицам, пострадавшим в до-рожно-транспортных происшествиях – 3 ком-плекта (по 1 комплекту Медколледж, КГССМП, учебного центра «Школа медицины катастроф» ТЦМК РТ",2,null,"РБ",600,600,600,0,0,1,1,0,0,600,0,0,0,"штук","В результате электронных торгов на поставку манекенов выиграла ООО \"Виртумед\" (г. Москва. Срок поставки I квартал 2015 года)"]
[22,2,"Содержание комплекса автоматизированной системы видеонаблюдения на улицах города Кызыла",2,5,"МБ",1100,1100,1100,698.3,698.3,10,10,546.79999999999995,0,151.5,546.79999999999995,0,29,"единица","Техническое обслуживание проводится по взаимодействию с диспетчерской службой УВД МВД г. Кызыла и ГИБДД МВД по РТ. По поступившим телефонограммам о случаях неисправности, незамедлительно принимаются меры по устранению неисправностей. Оплата будет произвидится в декабре текущего года."]
[23,2,"Создание видео-телевизионной и информационно-пропагандисткой продукции, организация наружной рекламы (баннеры, перетяжки), а также размещение материалов в средствах массовой информации, наглядной агитации по безопасности дорожного движения в общественных местах (общеобразовательных учреждениях, общественном транспорте, кинотеатрах, отсановках общественного транспорта и т.д.)",2,10,"МБ",40,40,40,0,0,0,0,0,0,0,0,0,0,0,"Согласно раздела 4 муниципальной целевой программы \"Повышение безопасности дорожного движения на территории городского округа \"Город Кызыл Республики Тыва\" на 2014-2016 годы\", исходя из возможностей местного бюджета мероприятие не проводилось"]
[24,2,"Введение паспортов дорожной безопасности образовательных учреждений в дошкольных и образовательных учреждениях республики в 2014-2015 годах для отображения информации об образовательном учреждении с точки зрения обеспечения безопасности детей на этапах их перемещения \"дом - образовательное учреждение (ОУ) - дом\", а также для использования преподовательским составом и сотрудниками Госавтоинспекции в работе по обучению школьников навыкам транспортной культуры и подготовки мероприятий по предупреждению дорожно-транспортного травматизма",3,11,"МБ",10,10,10,10,10,1,1,10,10,null,10,10,45,"штук","По состоянию на 1 сентября 2014 года 45 ОУ города Кызыла получили заключения на Паспорт дорожной безопасности ОУ."]
[25,2,"Разработка и изготовление пособий для педагогов по реализации образовательных программ по правилам дорожного движения",3,1,"МБ",25,25,25,0,0,0,0,0,0,0,0,0,0,0,"Согласно раздела 4 муниципальной целевой программы \"Повышение безопасности дорожного движения на территории городского округа \"Город Кызыл Республики Тыва\" на 2014-2016 годы\", исходя из возможностей местного бюджета мероприятие не выполнялось"]
[26,2,"Изготовление и распространение световозвращающих приспособлений в среде учащихся младших классов образовательных учреждений (световозвращающие  подвески (брелок) для пешеходов)",3,10,null,25,25,25,0,0,0,0,0,0,0,0,null,0,0]
[27,2,"Строительство светофорных объектов",5,8,"ВБИ",2175.5,2175.5,2096.08,2096.08,2096.08,2,2,0,0,2096.08,0,0,2,"штук","Светофорные объекты установлены на следующих  перекрестках:  Рабочая - Титова, Межмикрорайонная - Калинина. Оплата будет производиться в течении I квартала 2015 года"]
[28,2,"реконструкция и содержание светофорных объектов",5,9,"ВБИ",3258.7,3258.7,4749,4749,4749,10,10,4749,478.1,null,4749,478.1,44,"штук","Выполнены работы по эксплуатации 44 светофорных объектов. "]
[29,2,"Приобретение, утсановка и содержание дорожных знаков на территории города Кызыла",5,8,"ВБИ",4944.8999999999996,4944.8999999999996,4944.8999999999996,2065.6999999999998,2065.6999999999998,10,10,2065.6999999999998,411.9,null,2065.6999999999998,411.9,576,"штук","За 12 месяцев текущего года выполнены работы по эксплуатации дорожных знаков 265 шт., работы по установке знаков в количестве 247 шт. , замена дорожных знаков в количестве 64 шт. "]
[30,2,"Монтаж и эксплуатация пешеходных ограждений ",5,7,"ВБИ",3500,0,0,1735.2,1735.2,7,7,1735.2,1735.2,null,1735.2,1735.2,515.4,"п.м","В городе Кызыл были установлены пешеходные ограждения 440,43 м.п. и эксплуатация пешеходных ограждений 75 м.п"]
[31,2,"Приобретение и установка искусственных дорожных неровностей",5,8,"ВБИ",665.8,665.8,665.8,0,0,0,0,0,0,null,0,0,0,0]
[32,1,"Для координации деятельности и системы непрерывного обучения детей и подростков культуре безопасного поведения на дорогах - создание  методического центра по профилак-тике детского дорожно-транспортного травматизма на базе ГБОУ РТ РЦДОД в качестве одной из форм внеклассной работы;",3,2,"РБ",50,50,50,50,50,1,1,0,0,50,0,0,3,"штук","По результатам передвижки фин. стредств изысканы 50тыс. руб. на приобретение брошюратора, ламинатора и телевизора для центра ГБОУ РТ РЦДОД"]
[null,"1","Приобретение АПК \"Дорожный пристав\"",2,5,"РБ",285,285,285,285,285,1,1,0,0,285,0,0,1,"штук","По результатам передвижки финсредств изысканы 285,0 тыс. ру.б на приобретение АПК\"Дорожный пристав\""]

{"sheet":"Замена","index":12,"n_rows":0,"n_cols":0,"rows_kept":0,"cut":false,"hidden":true,"merged":[]}